Workbook

Sheet ورقة1

Sheet Sheet1
A1: اسم الموظف | B1: عدد الايام | C1: المرتب | D1: السلف | E1: الخصم | F1: الاجمالي
A2: ابانوب بشاره نصر بشاره | B2: =SUM(Sheet2!C6:AF6) -> 8 | C2: =Table1[[#This Row],[عدد الايام ]]*65 -> 520 | D2: 30 | E2: 10 | F2: =Table1[[#This Row],[المرتب ]]-(Table1[[#This Row],[السلف ]]+Table1[[#This Row],[الخصم ]]) -> 480
A3: ابراهيم احمد محمد عيسي | B3: =SUM(Sheet2!C7:AF7) -> 3 | C3: =Table1[[#This Row],[عدد الايام ]]*65 -> 195 | D3: 50 | E3: 5 | F3: =Table1[[#This Row],[المرتب ]]-(Table1[[#This Row],[السلف ]]+Table1[[#This Row],[الخصم ]]) -> 140
A4: ابراهيم عادل ابراهيم جباره | B4: =SUM(Sheet2!C8:AF8) -> 17 | C4: =Table1[[#This Row],[عدد الايام ]]*65 -> 1105 | F4: =Table1[[#This Row],[المرتب ]]-(Table1[[#This Row],[السلف ]]+Table1[[#This Row],[الخصم ]]) -> 1105
A5: ابراهيم عبدالحميد اسماعيل | B5: =SUM(Sheet2!C9:AF9) -> 1 | C5: =Table1[[#This Row],[عدد الايام ]]*65 -> 65 | F5: =Table1[[#This Row],[المرتب ]]-(Table1[[#This Row],[السلف ]]+Table1[[#This Row],[الخصم ]]) -> 65
A6: ابراهيم عبدالله محمد علي | B6: =SUM(Sheet2!C10:AF10) -> 6 | C6: =Table1[[#This Row],[عدد الايام ]]*65 -> 390 | F6: =Table1[[#This Row],[المرتب ]]-(Table1[[#This Row],[السلف ]]+Table1[[#This Row],[الخصم ]]) -> 390
A7: ابراهيم عقيلي ابراهيم حماد | B7: =SUM(Sheet2!C11:AF11) -> 16 | C7: =Table1[[#This Row],[عدد الايام ]]*65 -> 1040 | F7: =Table1[[#This Row],[المرتب ]]-(Table1[[#This Row],[السلف ]]+Table1[[#This Row],[الخصم ]]) -> 1040
A8: ابراهيم كامل علي عويان | B8: =SUM(Sheet2!C12:AF12) -> 25 | C8: =Table1[[#This Row],[عدد الايام ]]*65 -> 1625 | D8: 300 | F8: =Table1[[#This Row],[المرتب ]]-(Table1[[#This Row],[السلف ]]+Table1[[#This Row],[الخصم ]]) -> 1325
A9: ابراهيم محمد ابراهيم جاد | B9: =SUM(Sheet2!C13:AF13) -> 4 | C9: =Table1[[#This Row],[عدد الايام ]]*65 -> 260 | F9: =Table1[[#This Row],[المرتب ]]-(Table1[[#This Row],[السلف ]]+Table1[[#This Row],[الخصم ]]) -> 260
A10: ابراهيم محمد شعيب علي | B10: =SUM(Sheet2!C14:AF14) -> 2 | C10: =Table1[[#This Row],[عدد الايام ]]*65 -> 130 | F10: =Table1[[#This Row],[المرتب ]]-(Table1[[#This Row],[السلف ]]+Table1[[#This Row],[الخصم ]]) -> 130
A11: ابراهيم يوسف درويش ابراهيم | B11: =SUM(Sheet2!C15:AF15) -> 7 | C11: =Table1[[#This Row],[عدد الايام ]]*65 -> 455 | F11: =Table1[[#This Row],[المرتب ]]-(Table1[[#This Row],[السلف ]]+Table1[[#This Row],[الخصم ]]) -> 455
A12: ابوالسعود صابر ابوالسعود | B12: =SUM(Sheet2!C16:AF16) -> 1 | C12: =Table1[[#This Row],[عدد الايام ]]*65 -> 65 | F12: =Table1[[#This Row],[المرتب ]]-(Table1[[#This Row],[السلف ]]+Table1[[#This Row],[الخصم ]]) -> 65
A13: ابوالعلا محمد ابوالعلا | B13: =SUM(Sheet2!C17:AF17) -> 29 | C13: =Table1[[#This Row],[عدد الايام ]]*65 -> 1885 | F13: =Table1[[#This Row],[المرتب ]]-(Table1[[#This Row],[السلف ]]+Table1[[#This Row],[الخصم ]]) -> 1885
A14: ابوبكر عبدالعزيز عثمان | B14: =SUM(Sheet2!C18:AF18) -> 53 | C14: =Table1[[#This Row],[عدد الايام ]]*65 -> 3445 | F14: =Table1[[#This Row],[المرتب ]]-(Table1[[#This Row],[السلف ]]+Table1[[#This Row],[الخصم ]]) -> 3445
A15: احمد ابو نبوت احمد | B15: =SUM(Sheet2!C19:AF19) -> 10 | C15: =Table1[[#This Row],[عدد الايام ]]*65 -> 650 | F15: =Table1[[#This Row],[المرتب ]]-(Table1[[#This Row],[السلف ]]+Table1[[#This Row],[الخصم ]]) -> 650
A16: احمد اشرف محمد حسنين | B16: =SUM(Sheet2!C20:AF20) -> 24 | C16: =Table1[[#This Row],[عدد الايام ]]*65 -> 1560 | F16: =Table1[[#This Row],[المرتب ]]-(Table1[[#This Row],[السلف ]]+Table1[[#This Row],[الخصم ]]) -> 1560
A17: احمد انور محمد الهلوبي | B17: =SUM(Sheet2!C21:AF21) -> 8 | C17: =Table1[[#This Row],[عدد الايام ]]*65 -> 520 | F17: =Table1[[#This Row],[المرتب ]]-(Table1[[#This Row],[السلف ]]+Table1[[#This Row],[الخصم ]]) -> 520
A18: احمد ايمن نبوي | B18: =SUM(Sheet2!C22:AF22) -> 1 | C18: =Table1[[#This Row],[عدد الايام ]]*65 -> 65 | F18: =Table1[[#This Row],[المرتب ]]-(Table1[[#This Row],[السلف ]]+Table1[[#This Row],[الخصم ]]) -> 65
A19: احمد جلال احمد محارم | B19: =SUM(Sheet2!C23:AF23) -> 47 | C19: =Table1[[#This Row],[عدد الايام ]]*65 -> 3055 | F19: =Table1[[#This Row],[المرتب ]]-(Table1[[#This Row],[السلف ]]+Table1[[#This Row],[الخصم ]]) -> 3055
A20: احمد جمال احمد هلال | B20: =SUM(Sheet2!C24:AF24) -> 6 | C20: =Table1[[#This Row],[عدد الايام ]]*65 -> 390 | F20: =Table1[[#This Row],[المرتب ]]-(Table1[[#This Row],[السلف ]]+Table1[[#This Row],[الخصم ]]) -> 390
A21: احمد جمال عيسي حمزه | B21: =SUM(Sheet2!C25:AF25) -> 17 | C21: =Table1[[#This Row],[عدد الايام ]]*65 -> 1105 | F21: =Table1[[#This Row],[المرتب ]]-(Table1[[#This Row],[السلف ]]+Table1[[#This Row],[الخصم ]]) -> 1105
A22: احمد حسن حسن حبيب | B22: =SUM(Sheet2!C26:AF26) -> 9 | C22: =Table1[[#This Row],[عدد الايام ]]*65 -> 585 | F22: =Table1[[#This Row],[المرتب ]]-(Table1[[#This Row],[السلف ]]+Table1[[#This Row],[الخصم ]]) -> 585
A23: احمد حسن سعد محمد مبروك | B23: =SUM(Sheet2!C27:AF27) -> 2 | C23: =Table1[[#This Row],[عدد الايام ]]*65 -> 130 | F23: =Table1[[#This Row],[المرتب ]]-(Table1[[#This Row],[السلف ]]+Table1[[#This Row],[الخصم ]]) -> 130
A24: احمد حسن طه محمد | B24: =SUM(Sheet2!C28:AF28) -> 2 | C24: =Table1[[#This Row],[عدد الايام ]]*65 -> 130 | F24: =Table1[[#This Row],[المرتب ]]-(Table1[[#This Row],[السلف ]]+Table1[[#This Row],[الخصم ]]) -> 130
A25: احمد حسنين ابراهيم | B25: =SUM(Sheet2!C29:AF29) -> 19 | C25: =Table1[[#This Row],[عدد الايام ]]*65 -> 1235 | F25: =Table1[[#This Row],[المرتب ]]-(Table1[[#This Row],[السلف ]]+Table1[[#This Row],[الخصم ]]) -> 1235
A26: احمد حسين مبروك حسين | B26: =SUM(Sheet2!C30:AF30) -> 6 | C26: =Table1[[#This Row],[عدد الايام ]]*65 -> 390 | F26: =Table1[[#This Row],[المرتب ]]-(Table1[[#This Row],[السلف ]]+Table1[[#This Row],[الخصم ]]) -> 390
A27: احمد خليل عثمان البربري | B27: =SUM(Sheet2!C31:AF31) -> 1 | C27: =Table1[[#This Row],[عدد الايام ]]*65 -> 65 | F27: =Table1[[#This Row],[المرتب ]]-(Table1[[#This Row],[السلف ]]+Table1[[#This Row],[الخصم ]]) -> 65
A28: احمد خميس محمود عبدالنبي | B28: =SUM(Sheet2!C32:AF32) -> 44 | C28: =Table1[[#This Row],[عدد الايام ]]*65 -> 2860 | F28: =Table1[[#This Row],[المرتب ]]-(Table1[[#This Row],[السلف ]]+Table1[[#This Row],[الخصم ]]) -> 2860
A29: احمد رجب مرشدي محمد علي | B29: =SUM(Sheet2!C33:AF33) -> 17 | C29: =Table1[[#This Row],[عدد الايام ]]*65 -> 1105 | F29: =Table1[[#This Row],[المرتب ]]-(Table1[[#This Row],[السلف ]]+Table1[[#This Row],[الخصم ]]) -> 1105
A30: احمد رشاد عيسي محمد | B30: =SUM(Sheet2!C34:AF34) -> 6 | C30: =Table1[[#This Row],[عدد الايام ]]*65 -> 390 | F30: =Table1[[#This Row],[المرتب ]]-(Table1[[#This Row],[السلف ]]+Table1[[#This Row],[الخصم ]]) -> 390
A31: احمد رضا حلمي عبدالوهاب | B31: =SUM(Sheet2!C35:AF35) -> 6 | C31: =Table1[[#This Row],[عدد الايام ]]*65 -> 390 | F31: =Table1[[#This Row],[المرتب ]]-(Table1[[#This Row],[السلف ]]+Table1[[#This Row],[الخصم ]]) -> 390
A32: احمد زغلول احمد القماش | B32: =SUM(Sheet2!C36:AF36) -> 8 | C32: =Table1[[#This Row],[عدد الايام ]]*65 -> 520 | F32: =Table1[[#This Row],[المرتب ]]-(Table1[[#This Row],[السلف ]]+Table1[[#This Row],[الخصم ]]) -> 520
A33: احمد سامي السيد احمد | B33: =SUM(Sheet2!C37:AF37) -> 4 | C33: =Table1[[#This Row],[عدد الايام ]]*65 -> 260 | F33: =Table1[[#This Row],[المرتب ]]-(Table1[[#This Row],[السلف ]]+Table1[[#This Row],[الخصم ]]) -> 260
A34: احمد سلامه رمضان | B34: =SUM(Sheet2!C38:AF38) -> 6 | C34: =Table1[[#This Row],[عدد الايام ]]*65 -> 390 | F34: =Table1[[#This Row],[المرتب ]]-(Table1[[#This Row],[السلف ]]+Table1[[#This Row],[الخصم ]]) -> 390
A35: احمد صلاح محمود علي | B35: =SUM(Sheet2!C39:AF39) -> 22 | C35: =Table1[[#This Row],[عدد الايام ]]*65 -> 1430 | F35: =Table1[[#This Row],[المرتب ]]-(Table1[[#This Row],[السلف ]]+Table1[[#This Row],[الخصم ]]) -> 1430
A36: احمد عادل فتحي محمد | B36: =SUM(Sheet2!C40:AF40) -> 1 | C36: =Table1[[#This Row],[عدد الايام ]]*65 -> 65 | F36: =Table1[[#This Row],[المرتب ]]-(Table1[[#This Row],[السلف ]]+Table1[[#This Row],[الخصم ]]) -> 65
A37: احمد عبدالباسط محمد الطباخ | B37: =SUM(Sheet2!C41:AF41) -> 1 | C37: =Table1[[#This Row],[عدد الايام ]]*65 -> 65 | F37: =Table1[[#This Row],[المرتب ]]-(Table1[[#This Row],[السلف ]]+Table1[[#This Row],[الخصم ]]) -> 65
A38: احمد عبدالتواب احمد سالمان | B38: =SUM(Sheet2!C42:AF42) -> 5 | C38: =Table1[[#This Row],[عدد الايام ]]*65 -> 325 | F38: =Table1[[#This Row],[المرتب ]]-(Table1[[#This Row],[السلف ]]+Table1[[#This Row],[الخصم ]]) -> 325
A39: احمد عبدالحميد حسن | B39: =SUM(Sheet2!C43:AF43) -> 10 | C39: =Table1[[#This Row],[عدد الايام ]]*65 -> 650 | F39: =Table1[[#This Row],[المرتب ]]-(Table1[[#This Row],[السلف ]]+Table1[[#This Row],[الخصم ]]) -> 650
A40: احمد عبدالحميد عبدالمنصف | B40: =SUM(Sheet2!C44:AF44) -> 1 | C40: =Table1[[#This Row],[عدد الايام ]]*65 -> 65 | F40: =Table1[[#This Row],[المرتب ]]-(Table1[[#This Row],[السلف ]]+Table1[[#This Row],[الخصم ]]) -> 65
A41: احمد عبدالرحمن حسن | B41: =SUM(Sheet2!C45:AF45) -> 0 | C41: =Table1[[#This Row],[عدد الايام ]]*65 -> 0 | F41: =Table1[[#This Row],[المرتب ]]-(Table1[[#This Row],[السلف ]]+Table1[[#This Row],[الخصم ]]) -> 0
A42: احمد عبدالعزيز عبدالمقصود | B42: =SUM(Sheet2!C46:AF46) -> 45 | C42: =Table1[[#This Row],[عدد الايام ]]*65 -> 2925 | F42: =Table1[[#This Row],[المرتب ]]-(Table1[[#This Row],[السلف ]]+Table1[[#This Row],[الخصم ]]) -> 2925
A43: احمد عبدالله كامل عبدالعزيز | B43: =SUM(Sheet2!C47:AF47) -> 1 | C43: =Table1[[#This Row],[عدد الايام ]]*65 -> 65 | F43: =Table1[[#This Row],[المرتب ]]-(Table1[[#This Row],[السلف ]]+Table1[[#This Row],[الخصم ]]) -> 65
A44: احمد عبدالمولي محمد عبدالغفار | B44: =SUM(Sheet2!C48:AF48) -> 1 | C44: =Table1[[#This Row],[عدد الايام ]]*65 -> 65 | F44: =Table1[[#This Row],[المرتب ]]-(Table1[[#This Row],[السلف ]]+Table1[[#This Row],[الخصم ]]) -> 65
A45: احمد فتحي ابراهيم سلامه | B45: =SUM(Sheet2!C49:AF49) -> 17 | C45: =Table1[[#This Row],[عدد الايام ]]*65 -> 1105 | F45: =Table1[[#This Row],[المرتب ]]-(Table1[[#This Row],[السلف ]]+Table1[[#This Row],[الخصم ]]) -> 1105
A46: احمد فهمي علاء عبدالسلام | B46: =SUM(Sheet2!C50:AF50) -> 1 | C46: =Table1[[#This Row],[عدد الايام ]]*65 -> 65 | F46: =Table1[[#This Row],[المرتب ]]-(Table1[[#This Row],[السلف ]]+Table1[[#This Row],[الخصم ]]) -> 65
A47: احمد فهمي علي سلام | B47: =SUM(Sheet2!C51:AF51) -> 2 | C47: =Table1[[#This Row],[عدد الايام ]]*65 -> 130 | F47: =Table1[[#This Row],[المرتب ]]-(Table1[[#This Row],[السلف ]]+Table1[[#This Row],[الخصم ]]) -> 130
A48: احمد مجدي احمد الشرقاوي | B48: =SUM(Sheet2!C52:AF52) -> 2 | C48: =Table1[[#This Row],[عدد الايام ]]*65 -> 130 | F48: =Table1[[#This Row],[المرتب ]]-(Table1[[#This Row],[السلف ]]+Table1[[#This Row],[الخصم ]]) -> 130
A49: احمد محسن سعد محمد مبروك | B49: =SUM(Sheet2!C53:AF53) -> 18 | C49: =Table1[[#This Row],[عدد الايام ]]*65 -> 1170 | F49: =Table1[[#This Row],[المرتب ]]-(Table1[[#This Row],[السلف ]]+Table1[[#This Row],[الخصم ]]) -> 1170
A50: احمد محمد احمد حسن | B50: =SUM(Sheet2!C54:AF54) -> 21 | C50: =Table1[[#This Row],[عدد الايام ]]*65 -> 1365 | F50: =Table1[[#This Row],[المرتب ]]-(Table1[[#This Row],[السلف ]]+Table1[[#This Row],[الخصم ]]) -> 1365
A51: احمد محمد جاد الضي | B51: =SUM(Sheet2!C55:AF55) -> 1 | C51: =Table1[[#This Row],[عدد الايام ]]*65 -> 65 | F51: =Table1[[#This Row],[المرتب ]]-(Table1[[#This Row],[السلف ]]+Table1[[#This Row],[الخصم ]]) -> 65
A52: احمد محمد جمعه علي موسي | B52: =SUM(Sheet2!C56:AF56) -> 7 | C52: =Table1[[#This Row],[عدد الايام ]]*65 -> 455 | F52: =Table1[[#This Row],[المرتب ]]-(Table1[[#This Row],[السلف ]]+Table1[[#This Row],[الخصم ]]) -> 455
A53: احمد محمد حمد عبدالسيد | B53: =SUM(Sheet2!C57:AF57) -> 27 | C53: =Table1[[#This Row],[عدد الايام ]]*65 -> 1755 | F53: =Table1[[#This Row],[المرتب ]]-(Table1[[#This Row],[السلف ]]+Table1[[#This Row],[الخصم ]]) -> 1755
A54: احمد محمد عبدالعزيز زنون | B54: =SUM(Sheet2!C58:AF58) -> 2 | C54: =Table1[[#This Row],[عدد الايام ]]*65 -> 130 | F54: =Table1[[#This Row],[المرتب ]]-(Table1[[#This Row],[السلف ]]+Table1[[#This Row],[الخصم ]]) -> 130
A55: احمد محمد عبدالفتاح اسماعيل | B55: =SUM(Sheet2!C59:AF59) -> 8 | C55: =Table1[[#This Row],[عدد الايام ]]*65 -> 520 | F55: =Table1[[#This Row],[المرتب ]]-(Table1[[#This Row],[السلف ]]+Table1[[#This Row],[الخصم ]]) -> 520
A56: احمد محمد عبدالله سيد احمد | B56: =SUM(Sheet2!C60:AF60) -> 13 | C56: =Table1[[#This Row],[عدد الايام ]]*65 -> 845 | F56: =Table1[[#This Row],[المرتب ]]-(Table1[[#This Row],[السلف ]]+Table1[[#This Row],[الخصم ]]) -> 845
A57: احمد محمد عبدالله محمد | B57: =SUM(Sheet2!C61:AF61) -> 2 | C57: =Table1[[#This Row],[عدد الايام ]]*65 -> 130 | F57: =Table1[[#This Row],[المرتب ]]-(Table1[[#This Row],[السلف ]]+Table1[[#This Row],[الخصم ]]) -> 130
A58: احمد محمد عبدالمقصود | B58: =SUM(Sheet2!C62:AF62) -> 2 | C58: =Table1[[#This Row],[عدد الايام ]]*65 -> 130 | F58: =Table1[[#This Row],[المرتب ]]-(Table1[[#This Row],[السلف ]]+Table1[[#This Row],[الخصم ]]) -> 130
A59: احمد محمد عبدالمنعم عثمان الجندي | B59: =SUM(Sheet2!C63:AF63) -> 3 | C59: =Table1[[#This Row],[عدد الايام ]]*65 -> 195 | F59: =Table1[[#This Row],[المرتب ]]-(Table1[[#This Row],[السلف ]]+Table1[[#This Row],[الخصم ]]) -> 195
A60: احمد محمد علي محمد علي | B60: =SUM(Sheet2!C64:AF64) -> 3 | C60: =Table1[[#This Row],[عدد الايام ]]*65 -> 195 | F60: =Table1[[#This Row],[المرتب ]]-(Table1[[#This Row],[السلف ]]+Table1[[#This Row],[الخصم ]]) -> 195
A61: احمد محمد محمد زيدان | B61: =SUM(Sheet2!C65:AF65) -> 9 | C61: =Table1[[#This Row],[عدد الايام ]]*65 -> 585 | F61: =Table1[[#This Row],[المرتب ]]-(Table1[[#This Row],[السلف ]]+Table1[[#This Row],[الخصم ]]) -> 585
A62: احمد محمد محمد عبدالسيد | B62: =SUM(Sheet2!C66:AF66) -> 2 | C62: =Table1[[#This Row],[عدد الايام ]]*65 -> 130 | F62: =Table1[[#This Row],[المرتب ]]-(Table1[[#This Row],[السلف ]]+Table1[[#This Row],[الخصم ]]) -> 130
A63: احمد محمود احمد حبيب | B63: =SUM(Sheet2!C67:AF67) -> 6 | C63: =Table1[[#This Row],[عدد الايام ]]*65 -> 390 | F63: =Table1[[#This Row],[المرتب ]]-(Table1[[#This Row],[السلف ]]+Table1[[#This Row],[الخصم ]]) -> 390
A64: احمد محمود عبدالغفار | B64: =SUM(Sheet2!C68:AF68) -> 7 | C64: =Table1[[#This Row],[عدد الايام ]]*65 -> 455 | F64: =Table1[[#This Row],[المرتب ]]-(Table1[[#This Row],[السلف ]]+Table1[[#This Row],[الخصم ]]) -> 455
A65: احمد محمود محمد حبيش | B65: =SUM(Sheet2!C69:AF69) -> 2 | C65: =Table1[[#This Row],[عدد الايام ]]*65 -> 130 | F65: =Table1[[#This Row],[المرتب ]]-(Table1[[#This Row],[السلف ]]+Table1[[#This Row],[الخصم ]]) -> 130
A66: احمد محمود محمد حسين | B66: =SUM(Sheet2!C70:AF70) -> 16 | C66: =Table1[[#This Row],[عدد الايام ]]*65 -> 1040 | F66: =Table1[[#This Row],[المرتب ]]-(Table1[[#This Row],[السلف ]]+Table1[[#This Row],[الخصم ]]) -> 1040
A67: احمد محمود مصطفي علي | B67: =SUM(Sheet2!C71:AF71) -> 29 | C67: =Table1[[#This Row],[عدد الايام ]]*65 -> 1885 | F67: =Table1[[#This Row],[المرتب ]]-(Table1[[#This Row],[السلف ]]+Table1[[#This Row],[الخصم ]]) -> 1885
A68: احمد مرزوق عبدالحفيظ امين | B68: =SUM(Sheet2!C72:AF72) -> 1 | C68: =Table1[[#This Row],[عدد الايام ]]*65 -> 65 | F68: =Table1[[#This Row],[المرتب ]]-(Table1[[#This Row],[السلف ]]+Table1[[#This Row],[الخصم ]]) -> 65
A69: احمد منير محتمد سعد | B69: =SUM(Sheet2!C73:AF73) -> 19 | C69: =Table1[[#This Row],[عدد الايام ]]*65 -> 1235 | F69: =Table1[[#This Row],[المرتب ]]-(Table1[[#This Row],[السلف ]]+Table1[[#This Row],[الخصم ]]) -> 1235
A70: ادم رمضان عوض محمد | B70: =SUM(Sheet2!C74:AF74) -> 10 | C70: =Table1[[#This Row],[عدد الايام ]]*65 -> 650 | F70: =Table1[[#This Row],[المرتب ]]-(Table1[[#This Row],[السلف ]]+Table1[[#This Row],[الخصم ]]) -> 650
A71: ادهم رمضان عوض محمد | B71: =SUM(Sheet2!C75:AF75) -> 17 | C71: =Table1[[#This Row],[عدد الايام ]]*65 -> 1105 | F71: =Table1[[#This Row],[المرتب ]]-(Table1[[#This Row],[السلف ]]+Table1[[#This Row],[الخصم ]]) -> 1105
A72: اسامه جمعه عبدالعظيم | B72: =SUM(Sheet2!C76:AF76) -> 5 | C72: =Table1[[#This Row],[عدد الايام ]]*65 -> 325 | F72: =Table1[[#This Row],[المرتب ]]-(Table1[[#This Row],[السلف ]]+Table1[[#This Row],[الخصم ]]) -> 325
A73: اسامه عبدالله محمود عبدالله | B73: =SUM(Sheet2!C77:AF77) -> 19 | C73: =Table1[[#This Row],[عدد الايام ]]*65 -> 1235 | F73: =Table1[[#This Row],[المرتب ]]-(Table1[[#This Row],[السلف ]]+Table1[[#This Row],[الخصم ]]) -> 1235
A74: اسامه محمد عبدالمنعم الغريب | B74: =SUM(Sheet2!C78:AF78) -> 0 | C74: =Table1[[#This Row],[عدد الايام ]]*65 -> 0 | F74: =Table1[[#This Row],[المرتب ]]-(Table1[[#This Row],[السلف ]]+Table1[[#This Row],[الخصم ]]) -> 0
A75: اسلام احمد رجب عيد | B75: =SUM(Sheet2!C79:AF79) -> 0 | C75: =Table1[[#This Row],[عدد الايام ]]*65 -> 0 | F75: =Table1[[#This Row],[المرتب ]]-(Table1[[#This Row],[السلف ]]+Table1[[#This Row],[الخصم ]]) -> 0
A76: اسلام طارق عبدالفتاح | B76: =SUM(Sheet2!C80:AF80) -> 2 | C76: =Table1[[#This Row],[عدد الايام ]]*65 -> 130 | F76: =Table1[[#This Row],[المرتب ]]-(Table1[[#This Row],[السلف ]]+Table1[[#This Row],[الخصم ]]) -> 130
A77: اسلام محمد عبدالرحيم | B77: =SUM(Sheet2!C81:AF81) -> 44 | C77: =Table1[[#This Row],[عدد الايام ]]*65 -> 2860 | F77: =Table1[[#This Row],[المرتب ]]-(Table1[[#This Row],[السلف ]]+Table1[[#This Row],[الخصم ]]) -> 2860
A78: اسلام محمود ابراهيم حسن | B78: =SUM(Sheet2!C82:AF82) -> 33 | C78: =Table1[[#This Row],[عدد الايام ]]*65 -> 2145 | F78: =Table1[[#This Row],[المرتب ]]-(Table1[[#This Row],[السلف ]]+Table1[[#This Row],[الخصم ]]) -> 2145
A79: اسلام مسعد عبدالعزيزسليمان | B79: =SUM(Sheet2!C83:AF83) -> 5 | C79: =Table1[[#This Row],[عدد الايام ]]*65 -> 325 | F79: =Table1[[#This Row],[المرتب ]]-(Table1[[#This Row],[السلف ]]+Table1[[#This Row],[الخصم ]]) -> 325
A80: اسلام مصطفي علي ابوالحديد | B80: =SUM(Sheet2!C84:AF84) -> 4 | C80: =Table1[[#This Row],[عدد الايام ]]*65 -> 260 | F80: =Table1[[#This Row],[المرتب ]]-(Table1[[#This Row],[السلف ]]+Table1[[#This Row],[الخصم ]]) -> 260
A81: اسلام مصطفي محمد عبدالعزيز | B81: =SUM(Sheet2!C85:AF85) -> 36 | C81: =Table1[[#This Row],[عدد الايام ]]*65 -> 2340 | F81: =Table1[[#This Row],[المرتب ]]-(Table1[[#This Row],[السلف ]]+Table1[[#This Row],[الخصم ]]) -> 2340
A82: اسماعيل احمد محمود احمد | B82: =SUM(Sheet2!C86:AF86) -> 26 | C82: =Table1[[#This Row],[عدد الايام ]]*65 -> 1690 | F82: =Table1[[#This Row],[المرتب ]]-(Table1[[#This Row],[السلف ]]+Table1[[#This Row],[الخصم ]]) -> 1690
A83: اسماعيل محمد اسماعيل الطنطي | B83: =SUM(Sheet2!C87:AF87) -> 36 | C83: =Table1[[#This Row],[عدد الايام ]]*65 -> 2340 | F83: =Table1[[#This Row],[المرتب ]]-(Table1[[#This Row],[السلف ]]+Table1[[#This Row],[الخصم ]]) -> 2340
A84: اسماعيل مشحوت محمد عيد | B84: =SUM(Sheet2!C88:AF88) -> 26 | C84: =Table1[[#This Row],[عدد الايام ]]*65 -> 1690 | F84: =Table1[[#This Row],[المرتب ]]-(Table1[[#This Row],[السلف ]]+Table1[[#This Row],[الخصم ]]) -> 1690
A85: اشرف صادق عطيه | B85: =SUM(Sheet2!C89:AF89) -> 3 | C85: =Table1[[#This Row],[عدد الايام ]]*65 -> 195 | F85: =Table1[[#This Row],[المرتب ]]-(Table1[[#This Row],[السلف ]]+Table1[[#This Row],[الخصم ]]) -> 195
A86: اكرامي محمد مجاور حموده | B86: =SUM(Sheet2!C90:AF90) -> 15 | C86: =Table1[[#This Row],[عدد الايام ]]*65 -> 975 | F86: =Table1[[#This Row],[المرتب ]]-(Table1[[#This Row],[السلف ]]+Table1[[#This Row],[الخصم ]]) -> 975
A87: اكرامي محمد محمد موسي | B87: =SUM(Sheet2!C91:AF91) -> 6 | C87: =Table1[[#This Row],[عدد الايام ]]*65 -> 390 | F87: =Table1[[#This Row],[المرتب ]]-(Table1[[#This Row],[السلف ]]+Table1[[#This Row],[الخصم ]]) -> 390
A88: السيد عبدالله عمر مصباح | B88: =SUM(Sheet2!C92:AF92) -> 5 | C88: =Table1[[#This Row],[عدد الايام ]]*65 -> 325 | F88: =Table1[[#This Row],[المرتب ]]-(Table1[[#This Row],[السلف ]]+Table1[[#This Row],[الخصم ]]) -> 325
A89: السيد مبارك السيد علي الكسبي | B89: =SUM(Sheet2!C93:AF93) -> 7 | C89: =Table1[[#This Row],[عدد الايام ]]*65 -> 455 | F89: =Table1[[#This Row],[المرتب ]]-(Table1[[#This Row],[السلف ]]+Table1[[#This Row],[الخصم ]]) -> 455
A90: السيد محمود احمد عبداللطيف | B90: =SUM(Sheet2!C94:AF94) -> 14 | C90: =Table1[[#This Row],[عدد الايام ]]*65 -> 910 | F90: =Table1[[#This Row],[المرتب ]]-(Table1[[#This Row],[السلف ]]+Table1[[#This Row],[الخصم ]]) -> 910
A91: السيد مسعود السيد محمد | B91: =SUM(Sheet2!C95:AF95) -> 11 | C91: =Table1[[#This Row],[عدد الايام ]]*65 -> 715 | F91: =Table1[[#This Row],[المرتب ]]-(Table1[[#This Row],[السلف ]]+Table1[[#This Row],[الخصم ]]) -> 715
A92: الشحات حميده مبروك اسماعيل | B92: =SUM(Sheet2!C96:AF96) -> 3 | C92: =Table1[[#This Row],[عدد الايام ]]*65 -> 195 | F92: =Table1[[#This Row],[المرتب ]]-(Table1[[#This Row],[السلف ]]+Table1[[#This Row],[الخصم ]]) -> 195
A93: انس سعد مصطفي سلامه | B93: =SUM(Sheet2!C97:AF97) -> 7 | C93: =Table1[[#This Row],[عدد الايام ]]*65 -> 455 | F93: =Table1[[#This Row],[المرتب ]]-(Table1[[#This Row],[السلف ]]+Table1[[#This Row],[الخصم ]]) -> 455
A94: انور عبدالسلام احمد العجوز | B94: =SUM(Sheet2!C98:AF98) -> 26 | C94: =Table1[[#This Row],[عدد الايام ]]*65 -> 1690 | F94: =Table1[[#This Row],[المرتب ]]-(Table1[[#This Row],[السلف ]]+Table1[[#This Row],[الخصم ]]) -> 1690
A95: ايمن السيد محمد ابوزيد | B95: =SUM(Sheet2!C99:AF99) -> 2 | C95: =Table1[[#This Row],[عدد الايام ]]*65 -> 130 | F95: =Table1[[#This Row],[المرتب ]]-(Table1[[#This Row],[السلف ]]+Table1[[#This Row],[الخصم ]]) -> 130
A96: ايمن جمال السيد السيد مشحوت | B96: =SUM(Sheet2!C100:AF100) -> 27 | C96: =Table1[[#This Row],[عدد الايام ]]*65 -> 1755 | F96: =Table1[[#This Row],[المرتب ]]-(Table1[[#This Row],[السلف ]]+Table1[[#This Row],[الخصم ]]) -> 1755
A97: ايمن عبدالعزيز محمد زايد | B97: =SUM(Sheet2!C101:AF101) -> 1 | C97: =Table1[[#This Row],[عدد الايام ]]*65 -> 65 | F97: =Table1[[#This Row],[المرتب ]]-(Table1[[#This Row],[السلف ]]+Table1[[#This Row],[الخصم ]]) -> 65
A98: ايمن محمود هاشم محمود | B98: =SUM(Sheet2!C102:AF102) -> 3 | C98: =Table1[[#This Row],[عدد الايام ]]*65 -> 195 | F98: =Table1[[#This Row],[المرتب ]]-(Table1[[#This Row],[السلف ]]+Table1[[#This Row],[الخصم ]]) -> 195
A99: ايهاب حسن عبدالنطلب غنيم | B99: =SUM(Sheet2!C103:AF103) -> 5 | C99: =Table1[[#This Row],[عدد الايام ]]*65 -> 325 | F99: =Table1[[#This Row],[المرتب ]]-(Table1[[#This Row],[السلف ]]+Table1[[#This Row],[الخصم ]]) -> 325
A100: ايهاب فتحي مصطفي | B100: =SUM(Sheet2!C104:AF104) -> 0 | C100: =Table1[[#This Row],[عدد الايام ]]*65 -> 0 | F100: =Table1[[#This Row],[المرتب ]]-(Table1[[#This Row],[السلف ]]+Table1[[#This Row],[الخصم ]]) -> 0
A101: باسم فاروق محمود همام | B101: =SUM(Sheet2!C105:AF105) -> 29 | C101: =Table1[[#This Row],[عدد الايام ]]*65 -> 1885 | F101: =Table1[[#This Row],[المرتب ]]-(Table1[[#This Row],[السلف ]]+Table1[[#This Row],[الخصم ]]) -> 1885
A102: باسم نصر ابراهيم اسماعيل | B102: =SUM(Sheet2!C106:AF106) -> 13 | C102: =Table1[[#This Row],[عدد الايام ]]*65 -> 845 | F102: =Table1[[#This Row],[المرتب ]]-(Table1[[#This Row],[السلف ]]+Table1[[#This Row],[الخصم ]]) -> 845
A103: بدري عبدالله بدري عبدالله | B103: =SUM(Sheet2!C107:AF107) -> 6 | C103: =Table1[[#This Row],[عدد الايام ]]*65 -> 390 | F103: =Table1[[#This Row],[المرتب ]]-(Table1[[#This Row],[السلف ]]+Table1[[#This Row],[الخصم ]]) -> 390
A104: بلال جمعه عمر امين | B104: =SUM(Sheet2!C108:AF108) -> 19 | C104: =Table1[[#This Row],[عدد الايام ]]*65 -> 1235 | F104: =Table1[[#This Row],[المرتب ]]-(Table1[[#This Row],[السلف ]]+Table1[[#This Row],[الخصم ]]) -> 1235
A105: بلال رزق عبدالعزيز | B105: =SUM(Sheet2!C109:AF109) -> 19 | C105: =Table1[[#This Row],[عدد الايام ]]*65 -> 1235 | F105: =Table1[[#This Row],[المرتب ]]-(Table1[[#This Row],[السلف ]]+Table1[[#This Row],[الخصم ]]) -> 1235
A106: بلال عبدالعزيز احمد | B106: =SUM(Sheet2!C110:AF110) -> 1 | C106: =Table1[[#This Row],[عدد الايام ]]*65 -> 65 | F106: =Table1[[#This Row],[المرتب ]]-(Table1[[#This Row],[السلف ]]+Table1[[#This Row],[الخصم ]]) -> 65
A107: بلال عطيه على احمد | B107: =SUM(Sheet2!C111:AF111) -> 30 | C107: =Table1[[#This Row],[عدد الايام ]]*65 -> 1950 | F107: =Table1[[#This Row],[المرتب ]]-(Table1[[#This Row],[السلف ]]+Table1[[#This Row],[الخصم ]]) -> 1950
A108: بلال محمد عبدالتواب | B108: =SUM(Sheet2!C112:AF112) -> 1 | C108: =Table1[[#This Row],[عدد الايام ]]*65 -> 65 | F108: =Table1[[#This Row],[المرتب ]]-(Table1[[#This Row],[السلف ]]+Table1[[#This Row],[الخصم ]]) -> 65
A109: بلال محمد عبدالعزيز محمد علي | B109: =SUM(Sheet2!C113:AF113) -> 47 | C109: =Table1[[#This Row],[عدد الايام ]]*65 -> 3055 | F109: =Table1[[#This Row],[المرتب ]]-(Table1[[#This Row],[السلف ]]+Table1[[#This Row],[الخصم ]]) -> 3055
A110: بيشوي رضا جرجس سعد | B110: =SUM(Sheet2!C114:AF114) -> 13 | C110: =Table1[[#This Row],[عدد الايام ]]*65 -> 845 | F110: =Table1[[#This Row],[المرتب ]]-(Table1[[#This Row],[السلف ]]+Table1[[#This Row],[الخصم ]]) -> 845
A111: جابر صبري محمود اسماعيل | B111: =SUM(Sheet2!C115:AF115) -> 1 | C111: =Table1[[#This Row],[عدد الايام ]]*65 -> 65 | F111: =Table1[[#This Row],[المرتب ]]-(Table1[[#This Row],[السلف ]]+Table1[[#This Row],[الخصم ]]) -> 65
A112: جاد رزق عبدالعزيز احمد شعيشع | B112: =SUM(Sheet2!C116:AF116) -> 1 | C112: =Table1[[#This Row],[عدد الايام ]]*65 -> 65 | F112: =Table1[[#This Row],[المرتب ]]-(Table1[[#This Row],[السلف ]]+Table1[[#This Row],[الخصم ]]) -> 65
A113: جرجس موريس وهيب | B113: =SUM(Sheet2!C117:AF117) -> 1 | C113: =Table1[[#This Row],[عدد الايام ]]*65 -> 65 | F113: =Table1[[#This Row],[المرتب ]]-(Table1[[#This Row],[السلف ]]+Table1[[#This Row],[الخصم ]]) -> 65
A114: جمعه حمدي زكي محمد | B114: =SUM(Sheet2!C118:AF118) -> 10 | C114: =Table1[[#This Row],[عدد الايام ]]*65 -> 650 | F114: =Table1[[#This Row],[المرتب ]]-(Table1[[#This Row],[السلف ]]+Table1[[#This Row],[الخصم ]]) -> 650
A115: حازم عبدالجليل احمد | B115: =SUM(Sheet2!C119:AF119) -> 2 | C115: =Table1[[#This Row],[عدد الايام ]]*65 -> 130 | F115: =Table1[[#This Row],[المرتب ]]-(Table1[[#This Row],[السلف ]]+Table1[[#This Row],[الخصم ]]) -> 130
A116: حسام عصام فتحي محمد | B116: =SUM(Sheet2!C120:AF120) -> 4 | C116: =Table1[[#This Row],[عدد الايام ]]*65 -> 260 | F116: =Table1[[#This Row],[المرتب ]]-(Table1[[#This Row],[السلف ]]+Table1[[#This Row],[الخصم ]]) -> 260
A117: حسام فتحي احمد الشامي | B117: =SUM(Sheet2!C121:AF121) -> 4 | C117: =Table1[[#This Row],[عدد الايام ]]*65 -> 260 | F117: =Table1[[#This Row],[المرتب ]]-(Table1[[#This Row],[السلف ]]+Table1[[#This Row],[الخصم ]]) -> 260
A118: حسام كريم ابراهيم السيد | B118: =SUM(Sheet2!C122:AF122) -> 3 | C118: =Table1[[#This Row],[عدد الايام ]]*65 -> 195 | F118: =Table1[[#This Row],[المرتب ]]-(Table1[[#This Row],[السلف ]]+Table1[[#This Row],[الخصم ]]) -> 195
A119: حسام محمد محمود يوسف | B119: =SUM(Sheet2!C123:AF123) -> 4 | C119: =Table1[[#This Row],[عدد الايام ]]*65 -> 260 | F119: =Table1[[#This Row],[المرتب ]]-(Table1[[#This Row],[السلف ]]+Table1[[#This Row],[الخصم ]]) -> 260
A120: حسام نبيل محمود | B120: =SUM(Sheet2!C124:AF124) -> 3 | C120: =Table1[[#This Row],[عدد الايام ]]*65 -> 195 | F120: =Table1[[#This Row],[المرتب ]]-(Table1[[#This Row],[السلف ]]+Table1[[#This Row],[الخصم ]]) -> 195
A121: حسب النبي سعيد فتحي | B121: =SUM(Sheet2!C125:AF125) -> 20 | C121: =Table1[[#This Row],[عدد الايام ]]*65 -> 1300 | F121: =Table1[[#This Row],[المرتب ]]-(Table1[[#This Row],[السلف ]]+Table1[[#This Row],[الخصم ]]) -> 1300
A122: حسن الحسيني مسعد | B122: =SUM(Sheet2!C126:AF126) -> 6 | C122: =Table1[[#This Row],[عدد الايام ]]*65 -> 390 | F122: =Table1[[#This Row],[المرتب ]]-(Table1[[#This Row],[السلف ]]+Table1[[#This Row],[الخصم ]]) -> 390
A123: حسن رمضان السيد سليم | B123: =SUM(Sheet2!C127:AF127) -> 1 | C123: =Table1[[#This Row],[عدد الايام ]]*65 -> 65 | F123: =Table1[[#This Row],[المرتب ]]-(Table1[[#This Row],[السلف ]]+Table1[[#This Row],[الخصم ]]) -> 65
A124: حسن سامي سعيد | B124: =SUM(Sheet2!C128:AF128) -> 4 | C124: =Table1[[#This Row],[عدد الايام ]]*65 -> 260 | F124: =Table1[[#This Row],[المرتب ]]-(Table1[[#This Row],[السلف ]]+Table1[[#This Row],[الخصم ]]) -> 260
A125: حسن سامي سعيد الكر | B125: =SUM(Sheet2!C129:AF129) -> 2 | C125: =Table1[[#This Row],[عدد الايام ]]*65 -> 130 | F125: =Table1[[#This Row],[المرتب ]]-(Table1[[#This Row],[السلف ]]+Table1[[#This Row],[الخصم ]]) -> 130
A126: حسن عبدالغفار محمد عبدالعليم | B126: =SUM(Sheet2!C130:AF130) -> 4 | C126: =Table1[[#This Row],[عدد الايام ]]*65 -> 260 | F126: =Table1[[#This Row],[المرتب ]]-(Table1[[#This Row],[السلف ]]+Table1[[#This Row],[الخصم ]]) -> 260
A127: حسني عزالدين عبدالفضيل | B127: =SUM(Sheet2!C131:AF131) -> 19 | C127: =Table1[[#This Row],[عدد الايام ]]*65 -> 1235 | F127: =Table1[[#This Row],[المرتب ]]-(Table1[[#This Row],[السلف ]]+Table1[[#This Row],[الخصم ]]) -> 1235
A128: حسين عبدالغنى السيد محمد | B128: =SUM(Sheet2!C132:AF132) -> 26 | C128: =Table1[[#This Row],[عدد الايام ]]*65 -> 1690 | F128: =Table1[[#This Row],[المرتب ]]-(Table1[[#This Row],[السلف ]]+Table1[[#This Row],[الخصم ]]) -> 1690
A129: حماده رجب عبدالحفيظ | B129: =SUM(Sheet2!C133:AF133) -> 1 | C129: =Table1[[#This Row],[عدد الايام ]]*65 -> 65 | F129: =Table1[[#This Row],[المرتب ]]-(Table1[[#This Row],[السلف ]]+Table1[[#This Row],[الخصم ]]) -> 65
A130: حماده مرعي سعد محمد | B130: =SUM(Sheet2!C134:AF134) -> 1 | C130: =Table1[[#This Row],[عدد الايام ]]*65 -> 65 | F130: =Table1[[#This Row],[المرتب ]]-(Table1[[#This Row],[السلف ]]+Table1[[#This Row],[الخصم ]]) -> 65
A131: خالد عوض السيد عبدالرحمن | B131: =SUM(Sheet2!C135:AF135) -> 13 | C131: =Table1[[#This Row],[عدد الايام ]]*65 -> 845 | F131: =Table1[[#This Row],[المرتب ]]-(Table1[[#This Row],[السلف ]]+Table1[[#This Row],[الخصم ]]) -> 845
A132: خالد محمود محمد عبداللطيف | B132: =SUM(Sheet2!C136:AF136) -> 16 | C132: =Table1[[#This Row],[عدد الايام ]]*65 -> 1040 | F132: =Table1[[#This Row],[المرتب ]]-(Table1[[#This Row],[السلف ]]+Table1[[#This Row],[الخصم ]]) -> 1040
A133: خيري احمد عبدالغني هنداوي | B133: =SUM(Sheet2!C137:AF137) -> 7 | C133: =Table1[[#This Row],[عدد الايام ]]*65 -> 455 | F133: =Table1[[#This Row],[المرتب ]]-(Table1[[#This Row],[السلف ]]+Table1[[#This Row],[الخصم ]]) -> 455
A134: درويش الجوهري ابراهيم البري | B134: =SUM(Sheet2!C138:AF138) -> 5 | C134: =Table1[[#This Row],[عدد الايام ]]*65 -> 325 | F134: =Table1[[#This Row],[المرتب ]]-(Table1[[#This Row],[السلف ]]+Table1[[#This Row],[الخصم ]]) -> 325
A135: درويش رافت درويش | B135: =SUM(Sheet2!C139:AF139) -> 45 | C135: =Table1[[#This Row],[عدد الايام ]]*65 -> 2925 | F135: =Table1[[#This Row],[المرتب ]]-(Table1[[#This Row],[السلف ]]+Table1[[#This Row],[الخصم ]]) -> 2925
A136: راجي محمد الصباحي | B136: =SUM(Sheet2!C140:AF140) -> 7 | C136: =Table1[[#This Row],[عدد الايام ]]*65 -> 455 | F136: =Table1[[#This Row],[المرتب ]]-(Table1[[#This Row],[السلف ]]+Table1[[#This Row],[الخصم ]]) -> 455
A137: راعي سيد علي بربر | B137: =SUM(Sheet2!C141:AF141) -> 19 | C137: =Table1[[#This Row],[عدد الايام ]]*65 -> 1235 | F137: =Table1[[#This Row],[المرتب ]]-(Table1[[#This Row],[السلف ]]+Table1[[#This Row],[الخصم ]]) -> 1235
A138: رافت اشرف رفعت امين | B138: =SUM(Sheet2!C142:AF142) -> 13 | C138: =Table1[[#This Row],[عدد الايام ]]*65 -> 845 | F138: =Table1[[#This Row],[المرتب ]]-(Table1[[#This Row],[السلف ]]+Table1[[#This Row],[الخصم ]]) -> 845
A139: رافت كامل عبدالله عبدالعزيز | B139: =SUM(Sheet2!C143:AF143) -> 1 | C139: =Table1[[#This Row],[عدد الايام ]]*65 -> 65 | F139: =Table1[[#This Row],[المرتب ]]-(Table1[[#This Row],[السلف ]]+Table1[[#This Row],[الخصم ]]) -> 65
A140: رزق علاء رجب نصر عيسي | B140: =SUM(Sheet2!C144:AF144) -> 3 | C140: =Table1[[#This Row],[عدد الايام ]]*65 -> 195 | F140: =Table1[[#This Row],[المرتب ]]-(Table1[[#This Row],[السلف ]]+Table1[[#This Row],[الخصم ]]) -> 195
A141: رزق محمد رزق اسماعيل | B141: =SUM(Sheet2!C145:AF145) -> 1 | C141: =Table1[[#This Row],[عدد الايام ]]*65 -> 65 | F141: =Table1[[#This Row],[المرتب ]]-(Table1[[#This Row],[السلف ]]+Table1[[#This Row],[الخصم ]]) -> 65
A142: رضا غريب صقر محمد | B142: =SUM(Sheet2!C146:AF146) -> 1 | C142: =Table1[[#This Row],[عدد الايام ]]*65 -> 65 | F142: =Table1[[#This Row],[المرتب ]]-(Table1[[#This Row],[السلف ]]+Table1[[#This Row],[الخصم ]]) -> 65
A143: رضا معوض عباس | B143: =SUM(Sheet2!C147:AF147) -> 2 | C143: =Table1[[#This Row],[عدد الايام ]]*65 -> 130 | F143: =Table1[[#This Row],[المرتب ]]-(Table1[[#This Row],[السلف ]]+Table1[[#This Row],[الخصم ]]) -> 130
A144: رضوان شحاته احمد | B144: =SUM(Sheet2!C148:AF148) -> 1 | C144: =Table1[[#This Row],[عدد الايام ]]*65 -> 65 | F144: =Table1[[#This Row],[المرتب ]]-(Table1[[#This Row],[السلف ]]+Table1[[#This Row],[الخصم ]]) -> 65
A145: رفعت اشرف رفعت امين | B145: =SUM(Sheet2!C149:AF149) -> 12 | C145: =Table1[[#This Row],[عدد الايام ]]*65 -> 780 | F145: =Table1[[#This Row],[المرتب ]]-(Table1[[#This Row],[السلف ]]+Table1[[#This Row],[الخصم ]]) -> 780
A146: زكريا عبدالفتاح عبدالحميد | B146: =SUM(Sheet2!C150:AF150) -> 26 | C146: =Table1[[#This Row],[عدد الايام ]]*65 -> 1690 | F146: =Table1[[#This Row],[المرتب ]]-(Table1[[#This Row],[السلف ]]+Table1[[#This Row],[الخصم ]]) -> 1690
A147: زياد سالم احمد فراج | B147: =SUM(Sheet2!C151:AF151) -> 10 | C147: =Table1[[#This Row],[عدد الايام ]]*65 -> 650 | F147: =Table1[[#This Row],[المرتب ]]-(Table1[[#This Row],[السلف ]]+Table1[[#This Row],[الخصم ]]) -> 650
A148: سامح انور طلبه عطاالله | B148: =SUM(Sheet2!C152:AF152) -> 9 | C148: =Table1[[#This Row],[عدد الايام ]]*65 -> 585 | F148: =Table1[[#This Row],[المرتب ]]-(Table1[[#This Row],[السلف ]]+Table1[[#This Row],[الخصم ]]) -> 585
A149: سامح عابدين محمد علي | B149: =SUM(Sheet2!C153:AF153) -> 5 | C149: =Table1[[#This Row],[عدد الايام ]]*65 -> 325 | F149: =Table1[[#This Row],[المرتب ]]-(Table1[[#This Row],[السلف ]]+Table1[[#This Row],[الخصم ]]) -> 325
A150: سامي صبري جبر علي | B150: =SUM(Sheet2!C154:AF154) -> 16 | C150: =Table1[[#This Row],[عدد الايام ]]*65 -> 1040 | F150: =Table1[[#This Row],[المرتب ]]-(Table1[[#This Row],[السلف ]]+Table1[[#This Row],[الخصم ]]) -> 1040
A151: سامي عبدالله محمد سيد احمد | B151: =SUM(Sheet2!C155:AF155) -> 11 | C151: =Table1[[#This Row],[عدد الايام ]]*65 -> 715 | F151: =Table1[[#This Row],[المرتب ]]-(Table1[[#This Row],[السلف ]]+Table1[[#This Row],[الخصم ]]) -> 715
A152: سامي محمد عبده السيسي | B152: =SUM(Sheet2!C156:AF156) -> 31 | C152: =Table1[[#This Row],[عدد الايام ]]*65 -> 2015 | F152: =Table1[[#This Row],[المرتب ]]-(Table1[[#This Row],[السلف ]]+Table1[[#This Row],[الخصم ]]) -> 2015
A153: سعد محمد سعد خرش | B153: =SUM(Sheet2!C157:AF157) -> 1 | C153: =Table1[[#This Row],[عدد الايام ]]*65 -> 65 | F153: =Table1[[#This Row],[المرتب ]]-(Table1[[#This Row],[السلف ]]+Table1[[#This Row],[الخصم ]]) -> 65
A154: سعودي محمد طلبه محمد | B154: =SUM(Sheet2!C158:AF158) -> 1 | C154: =Table1[[#This Row],[عدد الايام ]]*65 -> 65 | F154: =Table1[[#This Row],[المرتب ]]-(Table1[[#This Row],[السلف ]]+Table1[[#This Row],[الخصم ]]) -> 65
A155: سعودي محمد عطيه | B155: =SUM(Sheet2!C159:AF159) -> 33 | C155: =Table1[[#This Row],[عدد الايام ]]*65 -> 2145 | F155: =Table1[[#This Row],[المرتب ]]-(Table1[[#This Row],[السلف ]]+Table1[[#This Row],[الخصم ]]) -> 2145
A156: سعيد علي عبدالهادي | B156: =SUM(Sheet2!C160:AF160) -> 18 | C156: =Table1[[#This Row],[عدد الايام ]]*65 -> 1170 | F156: =Table1[[#This Row],[المرتب ]]-(Table1[[#This Row],[السلف ]]+Table1[[#This Row],[الخصم ]]) -> 1170
A157: سليم اسماعيل بيومي سليم | B157: =SUM(Sheet2!C161:AF161) -> 7 | C157: =Table1[[#This Row],[عدد الايام ]]*65 -> 455 | F157: =Table1[[#This Row],[المرتب ]]-(Table1[[#This Row],[السلف ]]+Table1[[#This Row],[الخصم ]]) -> 455
A158: سليم عمار رحصان عيد | B158: =SUM(Sheet2!C162:AF162) -> 0 | C158: =Table1[[#This Row],[عدد الايام ]]*65 -> 0 | F158: =Table1[[#This Row],[المرتب ]]-(Table1[[#This Row],[السلف ]]+Table1[[#This Row],[الخصم ]]) -> 0
A159: سيد فاروق فؤاد سعد | B159: =SUM(Sheet2!C163:AF163) -> 3 | C159: =Table1[[#This Row],[عدد الايام ]]*65 -> 195 | F159: =Table1[[#This Row],[المرتب ]]-(Table1[[#This Row],[السلف ]]+Table1[[#This Row],[الخصم ]]) -> 195
A160: شامل مبروك حسن محمد | B160: =SUM(Sheet2!C164:AF164) -> 1 | C160: =Table1[[#This Row],[عدد الايام ]]*65 -> 65 | F160: =Table1[[#This Row],[المرتب ]]-(Table1[[#This Row],[السلف ]]+Table1[[#This Row],[الخصم ]]) -> 65
A161: شريف احمد محمد عبدالله | B161: =SUM(Sheet2!C165:AF165) -> 19 | C161: =Table1[[#This Row],[عدد الايام ]]*65 -> 1235 | F161: =Table1[[#This Row],[المرتب ]]-(Table1[[#This Row],[السلف ]]+Table1[[#This Row],[الخصم ]]) -> 1235
A162: شريف عبدالعزيز علي هندي | B162: =SUM(Sheet2!C166:AF166) -> 7 | C162: =Table1[[#This Row],[عدد الايام ]]*65 -> 455 | F162: =Table1[[#This Row],[المرتب ]]-(Table1[[#This Row],[السلف ]]+Table1[[#This Row],[الخصم ]]) -> 455
A163: شريف عمر امين محمد | B163: =SUM(Sheet2!C167:AF167) -> 21 | C163: =Table1[[#This Row],[عدد الايام ]]*65 -> 1365 | F163: =Table1[[#This Row],[المرتب ]]-(Table1[[#This Row],[السلف ]]+Table1[[#This Row],[الخصم ]]) -> 1365
A164: شعبان الشحات المتولي الشوكي | B164: =SUM(Sheet2!C168:AF168) -> 1 | C164: =Table1[[#This Row],[عدد الايام ]]*65 -> 65 | F164: =Table1[[#This Row],[المرتب ]]-(Table1[[#This Row],[السلف ]]+Table1[[#This Row],[الخصم ]]) -> 65
A165: شعبان بلبل الشحات المتولي | B165: =SUM(Sheet2!C169:AF169) -> 43 | C165: =Table1[[#This Row],[عدد الايام ]]*65 -> 2795 | F165: =Table1[[#This Row],[المرتب ]]-(Table1[[#This Row],[السلف ]]+Table1[[#This Row],[الخصم ]]) -> 2795
A166: شعبان حمدي شعبان الهليس | B166: =SUM(Sheet2!C170:AF170) -> 1 | C166: =Table1[[#This Row],[عدد الايام ]]*65 -> 65 | F166: =Table1[[#This Row],[المرتب ]]-(Table1[[#This Row],[السلف ]]+Table1[[#This Row],[الخصم ]]) -> 65
A167: شعبان عبدالكريم علواني عبدالكريم | B167: =SUM(Sheet2!C171:AF171) -> 6 | C167: =Table1[[#This Row],[عدد الايام ]]*65 -> 390 | F167: =Table1[[#This Row],[المرتب ]]-(Table1[[#This Row],[السلف ]]+Table1[[#This Row],[الخصم ]]) -> 390
A168: شكر صابر ابراهيم رضوان | B168: =SUM(Sheet2!C172:AF172) -> 21 | C168: =Table1[[#This Row],[عدد الايام ]]*65 -> 1365 | F168: =Table1[[#This Row],[المرتب ]]-(Table1[[#This Row],[السلف ]]+Table1[[#This Row],[الخصم ]]) -> 1365
A169: شهاب ابراهيم فرج عبدالعزيز | B169: =SUM(Sheet2!C173:AF173) -> 1 | C169: =Table1[[#This Row],[عدد الايام ]]*65 -> 65 | F169: =Table1[[#This Row],[المرتب ]]-(Table1[[#This Row],[السلف ]]+Table1[[#This Row],[الخصم ]]) -> 65
A170: صابر صبري محمود اسماعيل | B170: =SUM(Sheet2!C174:AF174) -> 11 | C170: =Table1[[#This Row],[عدد الايام ]]*65 -> 715 | F170: =Table1[[#This Row],[المرتب ]]-(Table1[[#This Row],[السلف ]]+Table1[[#This Row],[الخصم ]]) -> 715
A171: صادق عيد السيد عبدالرحمن | B171: =SUM(Sheet2!C175:AF175) -> 2 | C171: =Table1[[#This Row],[عدد الايام ]]*65 -> 130 | F171: =Table1[[#This Row],[المرتب ]]-(Table1[[#This Row],[السلف ]]+Table1[[#This Row],[الخصم ]]) -> 130
A172: صبحي توفيق السيد | B172: =SUM(Sheet2!C176:AF176) -> 18 | C172: =Table1[[#This Row],[عدد الايام ]]*65 -> 1170 | F172: =Table1[[#This Row],[المرتب ]]-(Table1[[#This Row],[السلف ]]+Table1[[#This Row],[الخصم ]]) -> 1170
A173: ضياء محمد محمد شحاته بحيري | B173: =SUM(Sheet2!C177:AF177) -> 1 | C173: =Table1[[#This Row],[عدد الايام ]]*65 -> 65 | F173: =Table1[[#This Row],[المرتب ]]-(Table1[[#This Row],[السلف ]]+Table1[[#This Row],[الخصم ]]) -> 65
A174: طارق عبدالفتاح السعيد عبدالباقي | B174: =SUM(Sheet2!C178:AF178) -> 16 | C174: =Table1[[#This Row],[عدد الايام ]]*65 -> 1040 | F174: =Table1[[#This Row],[المرتب ]]-(Table1[[#This Row],[السلف ]]+Table1[[#This Row],[الخصم ]]) -> 1040
A175: طارق عرفه عنتر زراع | B175: =SUM(Sheet2!C179:AF179) -> 19 | C175: =Table1[[#This Row],[عدد الايام ]]*65 -> 1235 | F175: =Table1[[#This Row],[المرتب ]]-(Table1[[#This Row],[السلف ]]+Table1[[#This Row],[الخصم ]]) -> 1235
A176: طارق محمود محمود عبدالمعطي | B176: =SUM(Sheet2!C180:AF180) -> 28 | C176: =Table1[[#This Row],[عدد الايام ]]*65 -> 1820 | F176: =Table1[[#This Row],[المرتب ]]-(Table1[[#This Row],[السلف ]]+Table1[[#This Row],[الخصم ]]) -> 1820
A177: طه حسن حسن الهندي | B177: =SUM(Sheet2!C181:AF181) -> 38 | C177: =Table1[[#This Row],[عدد الايام ]]*65 -> 2470 | F177: =Table1[[#This Row],[المرتب ]]-(Table1[[#This Row],[السلف ]]+Table1[[#This Row],[الخصم ]]) -> 2470
A178: طه عيد عبدالله شحاته | B178: =SUM(Sheet2!C182:AF182) -> 12 | C178: =Table1[[#This Row],[عدد الايام ]]*65 -> 780 | F178: =Table1[[#This Row],[المرتب ]]-(Table1[[#This Row],[السلف ]]+Table1[[#This Row],[الخصم ]]) -> 780
A179: عاصم السيد عبدالرحمن الدسوقي | B179: =SUM(Sheet2!C183:AF183) -> 2 | C179: =Table1[[#This Row],[عدد الايام ]]*65 -> 130 | F179: =Table1[[#This Row],[المرتب ]]-(Table1[[#This Row],[السلف ]]+Table1[[#This Row],[الخصم ]]) -> 130
A180: عاطف ابراهيم حليم مشحوت | B180: =SUM(Sheet2!C184:AF184) -> 6 | C180: =Table1[[#This Row],[عدد الايام ]]*65 -> 390 | F180: =Table1[[#This Row],[المرتب ]]-(Table1[[#This Row],[السلف ]]+Table1[[#This Row],[الخصم ]]) -> 390
A181: عاطف محمد محمد دراز | B181: =SUM(Sheet2!C185:AF185) -> 20 | C181: =Table1[[#This Row],[عدد الايام ]]*65 -> 1300 | F181: =Table1[[#This Row],[المرتب ]]-(Table1[[#This Row],[السلف ]]+Table1[[#This Row],[الخصم ]]) -> 1300
A182: عامر ابراهيم عامر بدوي | B182: =SUM(Sheet2!C186:AF186) -> 7 | C182: =Table1[[#This Row],[عدد الايام ]]*65 -> 455 | F182: =Table1[[#This Row],[المرتب ]]-(Table1[[#This Row],[السلف ]]+Table1[[#This Row],[الخصم ]]) -> 455
A183: عامر حبشي محمد حبشي | B183: =SUM(Sheet2!C187:AF187) -> 40 | C183: =Table1[[#This Row],[عدد الايام ]]*65 -> 2600 | F183: =Table1[[#This Row],[المرتب ]]-(Table1[[#This Row],[السلف ]]+Table1[[#This Row],[الخصم ]]) -> 2600
A184: عبدالحميد غريب عبدالحميد | B184: =SUM(Sheet2!C188:AF188) -> 24 | C184: =Table1[[#This Row],[عدد الايام ]]*65 -> 1560 | F184: =Table1[[#This Row],[المرتب ]]-(Table1[[#This Row],[السلف ]]+Table1[[#This Row],[الخصم ]]) -> 1560
A185: عبدالرحمن ابراهيم عبدالغني الطوخي | B185: =SUM(Sheet2!C189:AF189) -> 3 | C185: =Table1[[#This Row],[عدد الايام ]]*65 -> 195 | F185: =Table1[[#This Row],[المرتب ]]-(Table1[[#This Row],[السلف ]]+Table1[[#This Row],[الخصم ]]) -> 195
A186: عبدالرحمن ابراهيم عيد الفقي | B186: =SUM(Sheet2!C190:AF190) -> 3 | C186: =Table1[[#This Row],[عدد الايام ]]*65 -> 195 | F186: =Table1[[#This Row],[المرتب ]]-(Table1[[#This Row],[السلف ]]+Table1[[#This Row],[الخصم ]]) -> 195
A187: عبدالرحمن سالم عبدالرحمن | B187: =SUM(Sheet2!C191:AF191) -> 13 | C187: =Table1[[#This Row],[عدد الايام ]]*65 -> 845 | F187: =Table1[[#This Row],[المرتب ]]-(Table1[[#This Row],[السلف ]]+Table1[[#This Row],[الخصم ]]) -> 845
A188: عبدالرحمن عبداللاه عبدالعزيز طه | B188: =SUM(Sheet2!C192:AF192) -> 9 | C188: =Table1[[#This Row],[عدد الايام ]]*65 -> 585 | F188: =Table1[[#This Row],[المرتب ]]-(Table1[[#This Row],[السلف ]]+Table1[[#This Row],[الخصم ]]) -> 585
A189: عبدالرحمن محمد زياد محمد | B189: =SUM(Sheet2!C193:AF193) -> 2 | C189: =Table1[[#This Row],[عدد الايام ]]*65 -> 130 | F189: =Table1[[#This Row],[المرتب ]]-(Table1[[#This Row],[السلف ]]+Table1[[#This Row],[الخصم ]]) -> 130
A190: عبدالستارعيدعبدالستارعيسي | B190: =SUM(Sheet2!C194:AF194) -> 11 | C190: =Table1[[#This Row],[عدد الايام ]]*65 -> 715 | F190: =Table1[[#This Row],[المرتب ]]-(Table1[[#This Row],[السلف ]]+Table1[[#This Row],[الخصم ]]) -> 715
A191: عبدالسلام فتحي شلبي | B191: =SUM(Sheet2!C195:AF195) -> 8 | C191: =Table1[[#This Row],[عدد الايام ]]*65 -> 520 | F191: =Table1[[#This Row],[المرتب ]]-(Table1[[#This Row],[السلف ]]+Table1[[#This Row],[الخصم ]]) -> 520
A192: عبدالسلام فتحي محمد | B192: =SUM(Sheet2!C196:AF196) -> 2 | C192: =Table1[[#This Row],[عدد الايام ]]*65 -> 130 | F192: =Table1[[#This Row],[المرتب ]]-(Table1[[#This Row],[السلف ]]+Table1[[#This Row],[الخصم ]]) -> 130
A193: عبدالسلام مصطفي علي | B193: =SUM(Sheet2!C197:AF197) -> 1 | C193: =Table1[[#This Row],[عدد الايام ]]*65 -> 65 | F193: =Table1[[#This Row],[المرتب ]]-(Table1[[#This Row],[السلف ]]+Table1[[#This Row],[الخصم ]]) -> 65
A194: عبدالعزيز حمدي عبدالعزيز محمد | B194: =SUM(Sheet2!C198:AF198) -> 1 | C194: =Table1[[#This Row],[عدد الايام ]]*65 -> 65 | F194: =Table1[[#This Row],[المرتب ]]-(Table1[[#This Row],[السلف ]]+Table1[[#This Row],[الخصم ]]) -> 65
A195: عبدالغفار محمد منير | B195: =SUM(Sheet2!C199:AF199) -> 10 | C195: =Table1[[#This Row],[عدد الايام ]]*65 -> 650 | F195: =Table1[[#This Row],[المرتب ]]-(Table1[[#This Row],[السلف ]]+Table1[[#This Row],[الخصم ]]) -> 650
A196: عبدالغفور محمد عبالغفور دره | B196: =SUM(Sheet2!C200:AF200) -> 5 | C196: =Table1[[#This Row],[عدد الايام ]]*65 -> 325 | F196: =Table1[[#This Row],[المرتب ]]-(Table1[[#This Row],[السلف ]]+Table1[[#This Row],[الخصم ]]) -> 325
A197: عبدالغني جمال عاشور محمد | B197: =SUM(Sheet2!C201:AF201) -> 8 | C197: =Table1[[#This Row],[عدد الايام ]]*65 -> 520 | F197: =Table1[[#This Row],[المرتب ]]-(Table1[[#This Row],[السلف ]]+Table1[[#This Row],[الخصم ]]) -> 520
A198: عبدالفتاح جمعه عبدالحكيم جمعه | B198: =SUM(Sheet2!C202:AF202) -> 3 | C198: =Table1[[#This Row],[عدد الايام ]]*65 -> 195 | F198: =Table1[[#This Row],[المرتب ]]-(Table1[[#This Row],[السلف ]]+Table1[[#This Row],[الخصم ]]) -> 195
A199: عبدالفتاح عبدالقوي عبدالفتاح | B199: =SUM(Sheet2!C203:AF203) -> 22 | C199: =Table1[[#This Row],[عدد الايام ]]*65 -> 1430 | F199: =Table1[[#This Row],[المرتب ]]-(Table1[[#This Row],[السلف ]]+Table1[[#This Row],[الخصم ]]) -> 1430
A200: عبدالكريم محمد محمود | B200: =SUM(Sheet2!C204:AF204) -> 1 | C200: =Table1[[#This Row],[عدد الايام ]]*65 -> 65 | F200: =Table1[[#This Row],[المرتب ]]-(Table1[[#This Row],[السلف ]]+Table1[[#This Row],[الخصم ]]) -> 65
... 575 more rows

Sheet Sheet2
A1: كود الموظف | B1: اسم الموظف | C1: 2019-03-01 | D1: 2019-03-02 | E1: 2019-03-03 | F1: 2019-03-04 | G1: 2019-03-05 | H1: 2019-03-06 | I1: 2019-03-07 | J1: 2019-03-08 | K1: 2019-03-09 | L1: 2019-03-10 | M1: 2019-03-11 | N1: 2019-03-12 | O1: 2019-03-13 | P1: 2019-03-14 | Q1: 2019-03-15 | R1: 2019-03-16 | S1: 2019-03-17 | T1: 2019-03-18 | U1: 2019-03-19 | V1: 2019-03-20 | W1: 2019-03-21 | X1: 2019-03-22 | Y1: 2019-03-23 | Z1: 2019-03-24 | AA1: 2019-03-25 | AB1: 2019-03-26 | AC1: 2019-03-27 | AD1: 2019-03-28 | AE1: 2019-03-29 | AF1: 2019-03-30 | AG1: 2019-03-31 | AH1: اجمالي
A2: 1 | B2: ابانوب بشاره نصر بشاره
B3: ادخل كود الموظف سيجلب لك الاسم | C3: ادخل أيام في هذه الخانات سيرحل لك النتائج المطلوبة واذا اردت التعديل عل اسم معين ادخل كود الموظف وادخل اليوم الذى تريد التعديل ثم اضغط زر ترحيل
A5: كود الموظف | B5: اسم الموظف | C5: 2019-03-01 | D5: 2019-03-02 | E5: 2019-03-03 | F5: 2019-03-04 | G5: 2019-03-05 | H5: 2019-03-06 | I5: 2019-03-07 | J5: 2019-03-08 | K5: 2019-03-09 | L5: 2019-03-10 | M5: 2019-03-11 | N5: 2019-03-12 | O5: 2019-03-13 | P5: 2019-03-14 | Q5: 2019-03-15 | R5: 2019-03-16 | S5: 2019-03-17 | T5: 2019-03-18 | U5: 2019-03-19 | V5: 2019-03-20 | W5: 2019-03-21 | X5: 2019-03-22 | Y5: 2019-03-23 | Z5: 2019-03-24 | AA5: 2019-03-25 | AB5: 2019-03-26 | AC5: 2019-03-27 | AD5: 2019-03-28 | AE5: 2019-03-29 | AF5: 2019-03-30 | AG5: 2019-03-31 | AH5: اجمالي
A6: 1 | B6: ابانوب بشاره نصر بشاره | C6: 5 | H6: 3
A7: 2 | B7: ابراهيم احمد محمد عيسي | H7: 1 | I7: 2
A8: 3 | B8: ابراهيم عادل ابراهيم جباره | D8: 1 | F8: 1 | G8: 1 | H8: 1 | K8: 1 | L8: 1 | M8: 1 | N8: 1 | O8: 1 | R8: 1 | S8: 1 | U8: 1 | V8: 1 | Y8: 1 | Z8: 1 | AC8: 1 | AF8: 1
A9: 4 | B9: ابراهيم عبدالحميد اسماعيل | K9: 1
A10: 5 | B10: ابراهيم عبدالله محمد علي | X10: 2 | Y10: 1 | AB10: 1 | AE10: 2
A11: 6 | B11: ابراهيم عقيلي ابراهيم حماد | N11: 1 | O11: 1 | P11: 2 | Q11: 2 | S11: 2 | U11: 2 | V11: 1 | W11: 2 | X11: 2 | Y11: 1
A12: 7 | B12: ابراهيم كامل علي عويان | C12: 1 | D12: 1 | E12: 1 | F12: 1 | G12: 1 | H12: 1 | I12: 1 | J12: 1 | K12: 1 | L12: 1 | M12: 1 | N12: 1 | P12: 1 | Q12: 1 | S12: 1 | T12: 1 | U12: 1 | X12: 1 | Y12: 1 | Z12: 1 | AA12: 1 | AB12: 1 | AD12: 1 | AE12: 1 | AF12: 1
A13: 8 | B13: ابراهيم محمد ابراهيم جاد | R13: 1 | S13: 1 | V13: 1 | Z13: 1
A14: 9 | B14: ابراهيم محمد شعيب علي | AB14: 1 | AC14: 1
A15: 10 | B15: ابراهيم يوسف درويش ابراهيم | L15: 1 | M15: 2 | N15: 1 | O15: 1 | P15: 2
A16: 11 | B16: ابوالسعود صابر ابوالسعود | Z16: 1
A17: 12 | B17: ابوالعلا محمد ابوالعلا | D17: 1 | F17: 1 | G17: 1 | H17: 1 | I17: 1 | J17: 1 | K17: 1 | L17: 2 | M17: 1 | N17: 1 | O17: 2 | Q17: 1 | R17: 1 | S17: 2 | T17: 1 | V17: 2 | Y17: 1 | Z17: 1 | AA17: 1 | AB17: 1 | AC17: 1 | AE17: 2 | AF17: 2
A18: 13 | B18: ابوبكر عبدالعزيز عثمان | C18: 1 | D18: 2 | E18: 2 | F18: 2 | G18: 1 | H18: 2 | I18: 2 | J18: 2 | K18: 2 | L18: 2 | M18: 2 | N18: 2 | O18: 1 | P18: 2 | Q18: 2 | R18: 1 | S18: 2 | T18: 2 | U18: 2 | V18: 1 | W18: 2 | X18: 2 | Y18: 2 | Z18: 2 | AA18: 2 | AB18: 1 | AC18: 2 | AD18: 1 | AE18: 2 | AF18: 2
A19: 14 | B19: احمد ابو نبوت احمد | N19: 2 | O19: 1 | P19: 1 | Q19: 1 | R19: 2 | S19: 1 | T19: 1 | U19: 1
A20: 15 | B20: احمد اشرف محمد حسنين | P20: 2 | Q20: 2 | R20: 1 | S20: 2 | T20: 1 | U20: 2 | V20: 1 | W20: 1 | X20: 2 | Y20: 2 | Z20: 1 | AA20: 1 | AB20: 1 | AC20: 2 | AE20: 1 | AF20: 2
A21: 16 | B21: احمد انور محمد الهلوبي | D21: 1 | F21: 1 | O21: 1 | R21: 1 | S21: 1 | W21: 1 | Y21: 1 | Z21: 1
A22: 17 | B22: احمد ايمن نبوي | Q22: 1
A23: 18 | B23: احمد جلال احمد محارم | C23: 1 | D23: 2 | E23: 1 | F23: 2 | G23: 2 | H23: 1 | I23: 1 | J23: 2 | K23: 2 | L23: 1 | M23: 2 | N23: 2 | O23: 1 | P23: 1 | Q23: 2 | R23: 2 | S23: 1 | T23: 1 | U23: 2 | V23: 1 | W23: 2 | X23: 2 | Y23: 2 | Z23: 2 | AA23: 2 | AB23: 1 | AC23: 2 | AD23: 1 | AE23: 2 | AF23: 1
A24: 19 | B24: احمد جمال احمد هلال | E24: 1 | G24: 1 | H24: 1 | I24: 1 | J24: 1 | L24: 1
A25: 20 | B25: احمد جمال عيسي حمزه | C25: 1 | D25: 1 | E25: 1 | F25: 1 | G25: 1 | H25: 1 | I25: 2 | J25: 2 | L25: 1 | M25: 1 | N25: 1 | O25: 1 | R25: 1 | X25: 1 | AE25: 1
A26: 21 | B26: احمد حسن حسن حبيب | D26: 1 | E26: 1 | F26: 1 | K26: 1 | L26: 1 | M26: 1 | S26: 1 | T26: 1 | Z26: 1
A27: 22 | B27: احمد حسن سعد محمد مبروك | G27: 1 | U27: 1
A28: 23 | B28: احمد حسن طه محمد | AA28: 1 | AB28: 1
A29: 24 | B29: احمد حسنين ابراهيم | C29: 2 | D29: 2 | E29: 1 | F29: 1 | G29: 2 | H29: 1 | I29: 1 | J29: 2 | N29: 1 | Q29: 2 | S29: 1 | U29: 1 | V29: 1 | X29: 1
A30: 25 | B30: احمد حسين مبروك حسين | D30: 1 | F30: 1 | G30: 1 | I30: 1 | K30: 1 | L30: 1
A31: 26 | B31: احمد خليل عثمان البربري | C31: 1
A32: 27 | B32: احمد خميس محمود عبدالنبي | C32: 2 | D32: 2 | E32: 1 | F32: 1 | G32: 2 | H32: 1 | I32: 1 | J32: 2 | K32: 2 | L32: 2 | M32: 1 | N32: 2 | O32: 1 | P32: 2 | Q32: 2 | R32: 1 | S32: 2 | T32: 1 | U32: 2 | V32: 1 | W32: 1 | X32: 2 | Y32: 1 | Z32: 2 | AA32: 1 | AB32: 1 | AC32: 1 | AD32: 1 | AE32: 1 | AF32: 2
A33: 28 | B33: احمد رجب مرشدي محمد علي | D33: 1 | E33: 1 | F33: 1 | G33: 1 | I33: 1 | L33: 1 | O33: 1 | Q33: 1 | S33: 1 | T33: 1 | U33: 1 | W33: 1 | X33: 1 | AB33: 1 | AC33: 1 | AD33: 1 | AE33: 1
A34: 29 | B34: احمد رشاد عيسي محمد | X34: 1 | Y34: 1 | AC34: 1 | AE34: 2 | AF34: 1
A35: 30 | B35: احمد رضا حلمي عبدالوهاب | F35: 1 | G35: 1 | H35: 1 | I35: 1 | L35: 1 | AB35: 1
A36: 31 | B36: احمد زغلول احمد القماش | Z36: 1 | AA36: 1 | AB36: 1 | AC36: 2 | AE36: 1 | AF36: 2
A37: 32 | B37: احمد سامي السيد احمد | Y37: 1 | Z37: 1 | AA37: 1 | AB37: 1
A38: 33 | B38: احمد سلامه رمضان | C38: 1 | N38: 1 | P38: 2 | Q38: 1 | R38: 1
A39: 34 | B39: احمد صلاح محمود علي | D39: 1 | E39: 1 | F39: 1 | G39: 1 | H39: 1 | I39: 1 | J39: 1 | L39: 1 | N39: 1 | O39: 1 | P39: 1 | R39: 1 | T39: 1 | U39: 1 | V39: 1 | W39: 1 | Y39: 1 | Z39: 1 | AA39: 1 | AB39: 1 | AC39: 2
A40: 35 | B40: احمد عادل فتحي محمد | R40: 1
A41: 36 | B41: احمد عبدالباسط محمد الطباخ | F41: 1
A42: 37 | B42: احمد عبدالتواب احمد سالمان | L42: 1 | M42: 1 | AA42: 1 | AB42: 1 | AC42: 1
A43: 38 | B43: احمد عبدالحميد حسن | F43: 1 | G43: 1 | H43: 1 | M43: 1 | O43: 1 | T43: 1 | V43: 1 | AB43: 1 | AC43: 1 | AF43: 1
A44: 39 | B44: احمد عبدالحميد عبدالمنصف | K44: 1
A45: 40 | B45: احمد عبدالرحمن حسن
A46: 41 | B46: احمد عبدالعزيز عبدالمقصود | C46: 2 | D46: 2 | E46: 1 | F46: 2 | G46: 2 | H46: 1 | I46: 2 | J46: 2 | K46: 2 | L46: 2 | M46: 1 | N46: 2 | Q46: 1 | R46: 2 | S46: 2 | T46: 1 | U46: 1 | V46: 1 | W46: 2 | X46: 2 | Y46: 2 | Z46: 2 | AA46: 1 | AB46: 2 | AC46: 2 | AE46: 2 | AF46: 1
A47: 42 | B47: احمد عبدالله كامل عبدالعزيز | R47: 1
A48: 43 | B48: احمد عبدالمولي محمد عبدالغفار | AB48: 1
A49: 44 | B49: احمد فتحي ابراهيم سلامه | C49: 1 | D49: 1 | E49: 1 | G49: 1 | J49: 1 | K49: 1 | M49: 1 | N49: 1 | O49: 1 | S49: 1 | T49: 1 | X49: 1 | Z49: 1 | AA49: 1 | AB49: 1 | AE49: 1 | AF49: 1
A50: 45 | B50: احمد فهمي علاء عبدالسلام | N50: 1
A51: 46 | B51: احمد فهمي علي سلام | O51: 1 | P51: 1
A52: 47 | B52: احمد مجدي احمد الشرقاوي | AB52: 1 | AC52: 1
A53: 48 | B53: احمد محسن سعد محمد مبروك | E53: 1 | F53: 2 | H53: 1 | L53: 2 | M53: 1 | N53: 2 | S53: 1 | T53: 1 | U53: 1 | W53: 1 | AA53: 1 | AB53: 1 | AE53: 2 | AF53: 1
A54: 49 | B54: احمد محمد احمد حسن | C54: 1 | N54: 1 | P54: 1 | Q54: 1 | R54: 2 | S54: 1 | T54: 1 | U54: 1 | V54: 1 | W54: 2 | X54: 1 | Y54: 1 | Z54: 2 | AA54: 1 | AD54: 1 | AE54: 1 | AF54: 2
A55: 50 | B55: احمد محمد جاد الضي | AC55: 1
A56: 51 | B56: احمد محمد جمعه علي موسي | F56: 1 | M56: 1 | S56: 1 | U56: 1 | Z56: 1 | AA56: 1 | AB56: 1
A57: 52 | B57: احمد محمد حمد عبدالسيد | C57: 2 | E57: 1 | F57: 1 | G57: 1 | H57: 2 | J57: 2 | K57: 1 | L57: 1 | M57: 1 | N57: 1 | Q57: 2 | R57: 1 | S57: 1 | T57: 1 | U57: 1 | W57: 1 | X57: 2 | Y57: 1 | Z57: 1 | AE57: 2 | AF57: 1
A58: 53 | B58: احمد محمد عبدالعزيز زنون | G58: 1 | H58: 1
A59: 54 | B59: احمد محمد عبدالفتاح اسماعيل | G59: 1 | N59: 1 | O59: 1 | U59: 1 | V59: 1 | W59: 1 | AB59: 2
A60: 55 | B60: احمد محمد عبدالله سيد احمد | D60: 1 | E60: 1 | F60: 1 | G60: 1 | H60: 1 | J60: 1 | N60: 1 | S60: 1 | T60: 1 | W60: 1 | X60: 1 | Y60: 1 | Z60: 1
A61: 56 | B61: احمد محمد عبدالله محمد | AA61: 1 | AD61: 1
A62: 57 | B62: احمد محمد عبدالمقصود | U62: 1 | V62: 1
A63: 58 | B63: احمد محمد عبدالمنعم عثمان الجندي | Y63: 1 | Z63: 1 | AF63: 1
A64: 59 | B64: احمد محمد علي محمد علي | I64: 1 | M64: 1 | AF64: 1
A65: 60 | B65: احمد محمد محمد زيدان | E65: 1 | F65: 1 | G65: 1 | H65: 1 | K65: 1 | L65: 1 | O65: 1 | S65: 1 | T65: 1
A66: 61 | B66: احمد محمد محمد عبدالسيد | AA66: 1 | AC66: 1
A67: 62 | B67: احمد محمود احمد حبيب | U67: 1 | V67: 1 | W67: 2 | X67: 1 | Y67: 1
A68: 63 | B68: احمد محمود عبدالغفار | D68: 1 | E68: 1 | G68: 1 | H68: 1 | I68: 1 | J68: 1 | K68: 1
A69: 64 | B69: احمد محمود محمد حبيش | U69: 1 | V69: 1
A70: 65 | B70: احمد محمود محمد حسين | D70: 1 | E70: 1 | F70: 1 | G70: 1 | H70: 1 | L70: 1 | M70: 1 | O70: 1 | S70: 1 | T70: 1 | Y70: 1 | Z70: 1 | AA70: 1 | AB70: 1 | AC70: 1 | AF70: 1
A71: 66 | B71: احمد محمود مصطفي علي | C71: 1 | D71: 1 | G71: 1 | H71: 1 | I71: 1 | J71: 2 | L71: 2 | M71: 2 | N71: 2 | S71: 1 | U71: 1 | V71: 1 | W71: 1 | X71: 2 | AA71: 2 | AB71: 2 | AC71: 2 | AD71: 1 | AE71: 2 | AF71: 1
A72: 67 | B72: احمد مرزوق عبدالحفيظ امين | R72: 1
A73: 68 | B73: احمد منير محتمد سعد | C73: 1 | D73: 1 | E73: 1 | G73: 1 | I73: 1 | J73: 1 | K73: 1 | L73: 1 | M73: 1 | R73: 1 | T73: 1 | U73: 1 | W73: 1 | X73: 1 | Y73: 1 | AA73: 1 | AB73: 1 | AD73: 1 | AF73: 1
A74: 69 | B74: ادم رمضان عوض محمد | C74: 2 | D74: 2 | E74: 2 | F74: 2 | I74: 1 | O74: 1
A75: 70 | B75: ادهم رمضان عوض محمد | J75: 2 | K75: 2 | L75: 1 | M75: 2 | N75: 1 | P75: 2 | Q75: 1 | S75: 1 | T75: 1 | U75: 1 | W75: 1 | X75: 2
A76: 71 | B76: اسامه جمعه عبدالعظيم | O76: 1 | R76: 1 | T76: 1 | U76: 1 | Z76: 1
A77: 72 | B77: اسامه عبدالله محمود عبدالله | Q77: 2 | R77: 1 | S77: 2 | T77: 1 | U77: 1 | V77: 1 | W77: 1 | X77: 2 | Y77: 1 | AA77: 1 | AB77: 1 | AC77: 1 | AD77: 1 | AE77: 2 | AF77: 1
A78: 73 | B78: اسامه محمد عبدالمنعم الغريب
A79: 74 | B79: اسلام احمد رجب عيد
A80: 75 | B80: اسلام طارق عبدالفتاح | U80: 1 | V80: 1
A81: 76 | B81: اسلام محمد عبدالرحيم | C81: 2 | D81: 1 | E81: 2 | F81: 2 | G81: 1 | H81: 1 | I81: 1 | J81: 2 | K81: 2 | L81: 2 | M81: 2 | N81: 1 | P81: 2 | Q81: 2 | S81: 2 | T81: 1 | U81: 2 | V81: 1 | W81: 2 | X81: 2 | Y81: 2 | Z81: 1 | AA81: 1 | AB81: 2 | AC81: 1 | AD81: 1 | AE81: 2 | AF81: 1
A82: 77 | B82: اسلام محمود ابراهيم حسن | C82: 2 | D82: 2 | E82: 2 | F82: 1 | G82: 1 | M82: 2 | N82: 2 | P82: 2 | Q82: 2 | R82: 1 | S82: 2 | T82: 2 | U82: 1 | Y82: 1 | Z82: 1 | AA82: 2 | AB82: 1 | AC82: 2 | AD82: 1 | AE82: 2 | AF82: 1
A83: 78 | B83: اسلام مسعد عبدالعزيزسليمان | Z83: 1 | AA83: 1 | AB83: 1 | AC83: 1 | AF83: 1
A84: 79 | B84: اسلام مصطفي علي ابوالحديد | N84: 1 | O84: 1 | U84: 1 | Y84: 1
A85: 80 | B85: اسلام مصطفي محمد عبدالعزيز | C85: 1 | D85: 1 | E85: 2 | F85: 1 | G85: 2 | H85: 1 | I85: 1 | J85: 2 | K85: 1 | L85: 1 | M85: 1 | N85: 1 | O85: 1 | P85: 1 | Q85: 1 | R85: 1 | S85: 2 | T85: 1 | U85: 2 | V85: 1 | W85: 1 | X85: 2 | Y85: 1 | Z85: 1 | AA85: 2 | AB85: 1 | AC85: 1 | AE85: 1 | AF85: 1
A86: 81 | B86: اسماعيل احمد محمود احمد | C86: 1 | D86: 2 | E86: 2 | F86: 2 | G86: 2 | I86: 1 | J86: 2 | K86: 2 | L86: 1 | M86: 2 | N86: 1 | P86: 2 | Q86: 1 | R86: 1 | S86: 1 | T86: 1 | U86: 1 | W86: 1
A87: 82 | B87: اسماعيل محمد اسماعيل الطنطي | D87: 1 | E87: 1 | F87: 2 | G87: 2 | H87: 2 | K87: 2 | L87: 2 | M87: 2 | N87: 2 | O87: 1 | R87: 2 | S87: 2 | T87: 2 | U87: 2 | V87: 1 | AA87: 2 | AB87: 2 | AC87: 2 | AD87: 1 | AE87: 2 | AF87: 1
A88: 83 | B88: اسماعيل مشحوت محمد عيد | D88: 1 | E88: 1 | F88: 1 | G88: 1 | H88: 1 | I88: 1 | K88: 1 | L88: 1 | M88: 1 | N88: 1 | O88: 2 | R88: 1 | S88: 1 | T88: 1 | U88: 1 | V88: 2 | W88: 1 | Y88: 1 | Z88: 1 | AA88: 1 | AB88: 1 | AC88: 1 | AF88: 2
A89: 84 | B89: اشرف صادق عطيه | D89: 1 | E89: 1 | F89: 1
A90: 85 | B90: اكرامي محمد مجاور حموده | D90: 2 | F90: 1 | G90: 1 | H90: 1 | I90: 1 | K90: 1 | L90: 1 | M90: 1 | O90: 1 | P90: 1 | Q90: 1 | S90: 1 | T90: 1 | Y90: 1
A91: 86 | B91: اكرامي محمد محمد موسي | G91: 1 | J91: 1 | M91: 1 | S91: 1 | V91: 1 | Y91: 1
A92: 87 | B92: السيد عبدالله عمر مصباح | AC92: 1 | AE92: 2 | AF92: 2
A93: 88 | B93: السيد مبارك السيد علي الكسبي | AA93: 1 | AB93: 1 | AC93: 2 | AE93: 1 | AF93: 2
A94: 89 | B94: السيد محمود احمد عبداللطيف | D94: 1 | E94: 1 | F94: 1 | I94: 1 | M94: 1 | N94: 1 | O94: 1 | S94: 1 | T94: 1 | Y94: 1 | Z94: 1 | AA94: 1 | AB94: 1 | AF94: 1
A95: 90 | B95: السيد مسعود السيد محمد | Y95: 1 | Z95: 2 | AA95: 1 | AB95: 2 | AC95: 2 | AE95: 2 | AF95: 1
A96: 91 | B96: الشحات حميده مبروك اسماعيل | E96: 1 | G96: 1 | H96: 1
A97: 92 | B97: انس سعد مصطفي سلامه | P97: 1 | Q97: 2 | S97: 1 | T97: 1 | U97: 1 | X97: 1
A98: 93 | B98: انور عبدالسلام احمد العجوز | D98: 1 | E98: 1 | F98: 1 | G98: 1 | H98: 1 | I98: 1 | J98: 1 | K98: 1 | L98: 1 | M98: 1 | N98: 1 | P98: 1 | Q98: 1 | R98: 1 | S98: 1 | T98: 1 | U98: 1 | V98: 1 | W98: 1 | X98: 1 | Y98: 1 | AA98: 1 | AB98: 1 | AC98: 1 | AE98: 1 | AF98: 1
A99: 94 | B99: ايمن السيد محمد ابوزيد | D99: 2
A100: 95 | B100: ايمن جمال السيد السيد مشحوت | C100: 1 | D100: 1 | E100: 1 | F100: 1 | G100: 1 | H100: 1 | L100: 1 | M100: 1 | N100: 1 | O100: 1 | P100: 1 | R100: 1 | S100: 1 | T100: 1 | U100: 1 | V100: 1 | W100: 1 | X100: 1 | Y100: 1 | Z100: 1 | AA100: 1 | AB100: 1 | AC100: 1 | AE100: 2 | AF100: 2
A101: 96 | B101: ايمن عبدالعزيز محمد زايد | X101: 1
A102: 97 | B102: ايمن محمود هاشم محمود | R102: 1 | AA102: 1 | AB102: 1
A103: 98 | B103: ايهاب حسن عبدالنطلب غنيم | E103: 1 | F103: 1 | G103: 1 | H103: 1 | I103: 1
A104: 99 | B104: ايهاب فتحي مصطفي
A105: 100 | B105: باسم فاروق محمود همام | D105: 2 | E105: 2 | F105: 2 | G105: 2 | I105: 1 | J105: 2 | K105: 1 | L105: 1 | N105: 1 | P105: 1 | Q105: 2 | R105: 1 | T105: 1 | U105: 1 | W105: 1 | X105: 2 | Y105: 1 | Z105: 1 | AB105: 1 | AE105: 2 | AF105: 1
A106: 101 | B106: باسم نصر ابراهيم اسماعيل | R106: 1 | S106: 1 | T106: 1 | U106: 1 | W106: 1 | X106: 1 | Y106: 1 | Z106: 1 | AA106: 1 | AB106: 1 | AD106: 1 | AE106: 1 | AF106: 1
A107: 102 | B107: بدري عبدالله بدري عبدالله | C107: 2 | D107: 1 | F107: 1 | H107: 1 | I107: 1
A108: 103 | B108: بلال جمعه عمر امين | C108: 1 | D108: 1 | J108: 1 | K108: 1 | M108: 1 | N108: 1 | Q108: 1 | R108: 2 | S108: 2 | T108: 1 | U108: 1 | X108: 1 | Y108: 1 | AB108: 1 | AC108: 1 | AE108: 1 | AF108: 1
A109: 104 | B109: بلال رزق عبدالعزيز | C109: 2 | D109: 2 | E109: 2 | G109: 1 | P109: 1 | Q109: 2 | R109: 1 | S109: 1 | T109: 1 | U109: 1 | W109: 1 | X109: 2 | Y109: 1 | Z109: 1
A110: 105 | B110: بلال عبدالعزيز احمد | V110: 1
A111: 106 | B111: بلال عطيه على احمد | C111: 2 | D111: 2 | E111: 2 | F111: 2 | J111: 2 | K111: 2 | L111: 1 | M111: 2 | N111: 1 | O111: 1 | P111: 2 | Q111: 1 | R111: 1 | S111: 2 | T111: 1 | U111: 2 | X111: 2 | AE111: 2
A112: 107 | B112: بلال محمد عبدالتواب | H112: 1
A113: 108 | B113: بلال محمد عبدالعزيز محمد علي | E113: 1 | F113: 2 | G113: 2 | H113: 1 | I113: 2 | J113: 2 | K113: 2 | L113: 2 | M113: 1 | N113: 2 | O113: 1 | P113: 1 | Q113: 2 | R113: 2 | S113: 2 | T113: 2 | U113: 2 | V113: 2 | W113: 2 | X113: 2 | Y113: 2 | Z113: 2 | AA113: 1 | AB113: 2 | AC113: 2 | AE113: 2 | AF113: 1
A114: 109 | B114: بيشوي رضا جرجس سعد | E114: 1 | F114: 1 | G114: 1 | I114: 1 | M114: 1 | R114: 1 | W114: 1 | X114: 1 | Y114: 1 | AA114: 1 | AB114: 1 | AD114: 1 | AE114: 1
A115: 110 | B115: جابر صبري محمود اسماعيل | U115: 1
A116: 111 | B116: جاد رزق عبدالعزيز احمد شعيشع | F116: 1
A117: 112 | B117: جرجس موريس وهيب | C117: 1
A118: 113 | B118: جمعه حمدي زكي محمد | M118: 1 | N118: 1 | O118: 1 | Q118: 1 | R118: 1 | S118: 1 | U118: 1 | V118: 1 | W118: 1 | X118: 1
A119: 114 | B119: حازم عبدالجليل احمد | AA119: 1 | AE119: 1
A120: 115 | B120: حسام عصام فتحي محمد | F120: 1 | S120: 1 | Z120: 1 | AA120: 1
A121: 116 | B121: حسام فتحي احمد الشامي | M121: 1 | N121: 2 | O121: 1
A122: 117 | B122: حسام كريم ابراهيم السيد | C122: 1 | D122: 2
A123: 118 | B123: حسام محمد محمود يوسف | C123: 1 | D123: 1 | E123: 1 | F123: 1
A124: 119 | B124: حسام نبيل محمود | C124: 2 | D124: 1
A125: 120 | B125: حسب النبي سعيد فتحي | D125: 1 | E125: 1 | F125: 1 | G125: 1 | H125: 1 | I125: 1 | K125: 1 | L125: 1 | M125: 1 | N125: 1 | P125: 1 | Q125: 1 | R125: 1 | S125: 1 | T125: 1 | U125: 1 | W125: 1 | Y125: 1 | Z125: 1 | AA125: 1
A126: 121 | B126: حسن الحسيني مسعد | C126: 1 | D126: 2 | E126: 1 | F126: 1 | G126: 1
A127: 122 | B127: حسن رمضان السيد سليم | E127: 1
A128: 123 | B128: حسن سامي سعيد | T128: 1 | W128: 1 | AC128: 1 | AF128: 1
A129: 124 | B129: حسن سامي سعيد الكر | T129: 1 | U129: 1
A130: 125 | B130: حسن عبدالغفار محمد عبدالعليم | C130: 2 | D130: 1 | F130: 1
A131: 126 | B131: حسني عزالدين عبدالفضيل | D131: 1 | E131: 1 | F131: 1 | G131: 1 | K131: 1 | L131: 1 | M131: 1 | N131: 1 | R131: 1 | S131: 1 | T131: 1 | U131: 1 | V131: 1 | Y131: 1 | Z131: 1 | AA131: 1 | AB131: 1 | AC131: 1 | AF131: 1
A132: 127 | B132: حسين عبدالغنى السيد محمد | C132: 1 | D132: 1 | E132: 1 | F132: 1 | H132: 1 | I132: 1 | J132: 1 | K132: 1 | L132: 1 | M132: 1 | N132: 1 | P132: 1 | Q132: 1 | R132: 1 | S132: 1 | T132: 1 | U132: 1 | W132: 1 | X132: 1 | Y132: 1 | Z132: 1 | AA132: 1 | AB132: 1 | AD132: 1 | AE132: 1 | AF132: 1
A133: 128 | B133: حماده رجب عبدالحفيظ | AF133: 1
A134: 129 | B134: حماده مرعي سعد محمد | AB134: 1
A135: 130 | B135: خالد عوض السيد عبدالرحمن | R135: 1 | S135: 1 | T135: 1 | U135: 1 | V135: 1 | W135: 1 | X135: 1 | Y135: 1 | Z135: 1 | AC135: 2 | AE135: 1 | AF135: 1
A136: 131 | B136: خالد محمود محمد عبداللطيف | C136: 1 | D136: 2 | E136: 2 | F136: 2 | I136: 1 | J136: 1 | K136: 1 | L136: 1 | N136: 1 | Q136: 1 | R136: 1 | T136: 1 | X136: 1
A137: 132 | B137: خيري احمد عبدالغني هنداوي | Y137: 1 | Z137: 1 | AA137: 1 | AB137: 1 | AC137: 1 | AE137: 1 | AF137: 1
A138: 133 | B138: درويش الجوهري ابراهيم البري | M138: 1 | N138: 1 | O138: 1 | AA138: 1 | AB138: 1
A139: 134 | B139: درويش رافت درويش | C139: 2 | D139: 2 | E139: 1 | F139: 1 | G139: 1 | K139: 2 | L139: 2 | M139: 2 | N139: 2 | O139: 1 | P139: 2 | Q139: 2 | R139: 1 | S139: 2 | T139: 2 | U139: 2 | V139: 1 | W139: 2 | X139: 2 | Y139: 2 | Z139: 1 | AA139: 1 | AB139: 2 | AC139: 2 | AD139: 1 | AE139: 2 | AF139: 2
A140: 135 | B140: راجي محمد الصباحي | N140: 1 | O140: 1 | Y140: 1 | Z140: 1 | AA140: 1 | AB140: 1 | AC140: 1
A141: 136 | B141: راعي سيد علي بربر | C141: 2 | D141: 2 | E141: 2 | F141: 2 | Z141: 1 | AA141: 2 | AB141: 2 | AC141: 1 | AD141: 1 | AE141: 2 | AF141: 2
A142: 137 | B142: رافت اشرف رفعت امين | L142: 1 | M142: 1 | P142: 1 | Q142: 1 | S142: 1 | T142: 1 | U142: 1 | W142: 1 | Y142: 1 | AA142: 1 | AB142: 1 | AE142: 1 | AF142: 1
A143: 138 | B143: رافت كامل عبدالله عبدالعزيز | J143: 1
A144: 139 | B144: رزق علاء رجب نصر عيسي | H144: 1 | I144: 2
A145: 140 | B145: رزق محمد رزق اسماعيل | H145: 1
A146: 141 | B146: رضا غريب صقر محمد | E146: 1
A147: 142 | B147: رضا معوض عباس | Z147: 1 | AB147: 1
A148: 143 | B148: رضوان شحاته احمد | AB148: 1
A149: 144 | B149: رفعت اشرف رفعت امين | C149: 1 | E149: 1 | F149: 1 | G149: 1 | I149: 1 | J149: 1 | K149: 1 | M149: 1 | N149: 1 | R149: 1 | Z149: 1 | AB149: 1
A150: 145 | B150: زكريا عبدالفتاح عبدالحميد | E150: 1 | F150: 1 | G150: 1 | H150: 1 | I150: 1 | J150: 1 | K150: 1 | L150: 1 | M150: 1 | N150: 1 | O150: 1 | P150: 1 | R150: 1 | S150: 1 | T150: 1 | U150: 1 | V150: 1 | W150: 1 | X150: 1 | Y150: 1 | Z150: 1 | AA150: 1 | AB150: 1 | AC150: 1 | AE150: 1 | AF150: 1
A151: 146 | B151: زياد سالم احمد فراج | E151: 1 | F151: 1 | G151: 1 | H151: 1 | J151: 1 | K151: 1 | L151: 1 | N151: 1 | U151: 1 | W151: 1
A152: 147 | B152: سامح انور طلبه عطاالله | C152: 1 | D152: 1 | E152: 1 | F152: 1 | G152: 1 | T152: 1 | U152: 1 | W152: 1 | AD152: 1
A153: 148 | B153: سامح عابدين محمد علي | Q153: 1 | R153: 1 | S153: 1 | T153: 1 | U153: 1
A154: 149 | B154: سامي صبري جبر علي | D154: 1 | E154: 1 | F154: 1 | H154: 1 | I154: 1 | K154: 1 | L154: 1 | M154: 1 | N154: 1 | Q154: 1 | R154: 1 | S154: 1 | T154: 1 | X154: 1 | Z154: 1 | AA154: 1
A155: 150 | B155: سامي عبدالله محمد سيد احمد | D155: 1 | F155: 1 | G155: 1 | J155: 1 | K155: 1 | R155: 1 | T155: 1 | U155: 1 | X155: 1 | Y155: 1 | AE155: 1
A156: 151 | B156: سامي محمد عبده السيسي | F156: 1 | G156: 1 | I156: 2 | J156: 2 | K156: 1 | L156: 2 | M156: 1 | N156: 2 | Q156: 1 | R156: 2 | S156: 1 | T156: 2 | U156: 1 | V156: 1 | W156: 1 | X156: 2 | Y156: 1 | Z156: 2 | AB156: 1 | AC156: 1 | AD156: 1 | AE156: 1 | AF156: 1
A157: 152 | B157: سعد محمد سعد خرش | I157: 1
A158: 153 | B158: سعودي محمد طلبه محمد | W158: 1
A159: 154 | B159: سعودي محمد عطيه | E159: 1 | F159: 1 | G159: 2 | H159: 1 | I159: 2 | J159: 1 | K159: 2 | L159: 1 | M159: 1 | N159: 1 | P159: 1 | Q159: 2 | R159: 2 | S159: 1 | T159: 2 | U159: 2 | V159: 1 | X159: 1 | Y159: 2 | AB159: 2 | AC159: 1 | AE159: 2 | AF159: 1
A160: 155 | B160: سعيد علي عبدالهادي | E160: 1 | F160: 1 | G160: 1 | H160: 1 | I160: 1 | K160: 1 | M160: 1 | N160: 1 | O160: 1 | R160: 1 | S160: 1 | T160: 1 | U160: 1 | V160: 1 | W160: 1 | Y160: 1 | Z160: 1 | AC160: 1
A161: 156 | B161: سليم اسماعيل بيومي سليم | E161: 1 | H161: 1 | I161: 1 | V161: 1 | Y161: 1 | AE161: 1 | AF161: 1
A162: 157 | B162: سليم عمار رحصان عيد
A163: 158 | B163: سيد فاروق فؤاد سعد | AE163: 1 | AF163: 2
A164: 159 | B164: شامل مبروك حسن محمد | G164: 1
A165: 160 | B165: شريف احمد محمد عبدالله | C165: 1 | D165: 1 | F165: 1 | G165: 1 | H165: 1 | I165: 1 | J165: 1 | K165: 2 | M165: 1 | N165: 1 | Q165: 1 | R165: 1 | W165: 1 | Y165: 2 | AA165: 1 | AC165: 1 | AD165: 1
A166: 161 | B166: شريف عبدالعزيز علي هندي | R166: 1 | T166: 1 | V166: 1 | Y166: 1 | Z166: 1 | AA166: 1 | AB166: 1
A167: 162 | B167: شريف عمر امين محمد | D167: 1 | E167: 1 | F167: 1 | G167: 1 | H167: 1 | J167: 1 | K167: 1 | L167: 1 | M167: 1 | N167: 1 | O167: 1 | Q167: 1 | R167: 1 | S167: 1 | T167: 1 | V167: 1 | X167: 1 | Y167: 1 | Z167: 1 | AA167: 1 | AB167: 1
A168: 163 | B168: شعبان الشحات المتولي الشوكي | Y168: 1
A169: 164 | B169: شعبان بلبل الشحات المتولي | E169: 1 | F169: 2 | G169: 2 | H169: 2 | I169: 2 | J169: 2 | K169: 2 | L169: 2 | M169: 1 | N169: 2 | O169: 2 | P169: 1 | Q169: 2 | R169: 1 | S169: 1 | T169: 2 | U169: 1 | V169: 1 | W169: 2 | X169: 2 | Y169: 1 | Z169: 1 | AA169: 1 | AB169: 1 | AC169: 2 | AD169: 1 | AE169: 2 | AF169: 1
A170: 165 | B170: شعبان حمدي شعبان الهليس | AC170: 1
A171: 166 | B171: شعبان عبدالكريم علواني عبدالكريم | AC171: 1 | AD171: 1 | AE171: 2 | AF171: 2
A172: 167 | B172: شكر صابر ابراهيم رضوان | C172: 1 | D172: 1 | E172: 1 | F172: 1 | H172: 1 | J172: 1 | K172: 1 | L172: 1 | M172: 1 | N172: 1 | O172: 1 | Q172: 1 | R172: 1 | S172: 1 | U172: 1 | V172: 1 | X172: 1 | Y172: 1 | Z172: 1 | AA172: 1 | AC172: 1
A173: 168 | B173: شهاب ابراهيم فرج عبدالعزيز | R173: 1
A174: 169 | B174: صابر صبري محمود اسماعيل | T174: 1 | V174: 1 | W174: 1 | X174: 1 | Y174: 1 | Z174: 1 | AA174: 1 | AB174: 1 | AC174: 1 | AE174: 1 | AF174: 1
A175: 170 | B175: صادق عيد السيد عبدالرحمن | Y175: 1 | Z175: 1
A176: 171 | B176: صبحي توفيق السيد | C176: 1 | D176: 1 | E176: 1 | F176: 1 | G176: 1 | H176: 1 | I176: 2 | J176: 1 | K176: 1 | L176: 1 | M176: 1 | N176: 1 | Q176: 1 | S176: 1 | W176: 1 | X176: 1 | Y176: 1
A177: 172 | B177: ضياء محمد محمد شحاته بحيري | R177: 1
A178: 173 | B178: طارق عبدالفتاح السعيد عبدالباقي | D178: 1 | G178: 1 | H178: 1 | J178: 1 | L178: 1 | M178: 1 | T178: 1 | W178: 1 | X178: 1 | Y178: 1 | Z178: 1 | AA178: 1 | AB178: 1 | AC178: 1 | AD178: 1 | AF178: 1
A179: 174 | B179: طارق عرفه عنتر زراع | N179: 1 | P179: 1 | Q179: 1 | R179: 2 | S179: 1 | T179: 1 | U179: 1 | V179: 1 | W179: 2 | X179: 1 | Y179: 1 | Z179: 2 | AA179: 1 | AD179: 1 | AF179: 2
A180: 175 | B180: طارق محمود محمود عبدالمعطي | C180: 2 | D180: 1 | E180: 1 | F180: 1 | G180: 1 | J180: 1 | L180: 1 | M180: 2 | N180: 1 | O180: 1 | Q180: 2 | R180: 1 | S180: 1 | T180: 2 | U180: 2 | W180: 2 | X180: 2 | Z180: 1 | AA180: 1 | AC180: 1 | AF180: 1
A181: 176 | B181: طه حسن حسن الهندي | C181: 2 | D181: 2 | E181: 1 | F181: 1 | G181: 1 | H181: 1 | I181: 1 | J181: 2 | K181: 1 | L181: 1 | M181: 1 | N181: 1 | O181: 1 | P181: 1 | Q181: 1 | R181: 1 | S181: 2 | T181: 1 | U181: 2 | V181: 1 | W181: 1 | X181: 2 | Y181: 1 | Z181: 2 | AA181: 1 | AB181: 1 | AC181: 1 | AD181: 1 | AE181: 1 | AF181: 2
A182: 177 | B182: طه عيد عبدالله شحاته | T182: 1 | U182: 2 | V182: 1 | W182: 1 | X182: 1 | Y182: 1 | Z182: 1 | AA182: 1 | AC182: 1 | AE182: 1 | AF182: 1
A183: 178 | B183: عاصم السيد عبدالرحمن الدسوقي | Y183: 1 | Z183: 1
A184: 179 | B184: عاطف ابراهيم حليم مشحوت | F184: 1 | H184: 1 | S184: 1 | T184: 1 | U184: 1 | X184: 1
A185: 180 | B185: عاطف محمد محمد دراز | D185: 1 | E185: 1 | F185: 1 | G185: 1 | H185: 1 | I185: 1 | K185: 1 | M185: 1 | N185: 1 | O185: 1 | T185: 1 | U185: 1 | V185: 1 | W185: 1 | Y185: 1 | Z185: 1 | AA185: 1 | AB185: 1 | AC185: 1 | AF185: 1
A186: 181 | B186: عامر ابراهيم عامر بدوي | D186: 1 | E186: 1 | G186: 1 | H186: 1 | M186: 1 | R186: 1 | T186: 1
A187: 182 | B187: عامر حبشي محمد حبشي | E187: 1 | F187: 2 | G187: 2 | H187: 2 | I187: 2 | J187: 2 | K187: 2 | L187: 2 | M187: 1 | N187: 2 | O187: 2 | Q187: 2 | R187: 1 | S187: 1 | T187: 2 | U187: 1 | V187: 1 | W187: 2 | X187: 2 | Y187: 2 | AA187: 1 | AB187: 1 | AC187: 2 | AE187: 1 | AF187: 1
A188: 183 | B188: عبدالحميد غريب عبدالحميد | D188: 1 | E188: 1 | F188: 1 | G188: 1 | H188: 1 | I188: 1 | K188: 1 | L188: 1 | M188: 1 | N188: 1 | P188: 1 | Q188: 1 | R188: 1 | S188: 1 | T188: 1 | U188: 1 | W188: 1 | X188: 1 | Y188: 1 | Z188: 1 | AA188: 1 | AB188: 1 | AC188: 1 | AD188: 1
A189: 184 | B189: عبدالرحمن ابراهيم عبدالغني الطوخي | L189: 1 | O189: 1 | Q189: 1
A190: 185 | B190: عبدالرحمن ابراهيم عيد الفقي | E190: 1 | F190: 1 | I190: 1
A191: 186 | B191: عبدالرحمن سالم عبدالرحمن | C191: 1 | E191: 1 | F191: 1 | M191: 1 | O191: 1 | P191: 1 | S191: 1 | T191: 1 | U191: 1 | W191: 1 | X191: 1 | Y191: 1 | Z191: 1
A192: 187 | B192: عبدالرحمن عبداللاه عبدالعزيز طه | N192: 1 | P192: 1 | Q192: 1 | R192: 1 | T192: 1 | W192: 1 | Z192: 1 | AC192: 1 | AD192: 1
A193: 188 | B193: عبدالرحمن محمد زياد محمد | C193: 1 | D193: 1
A194: 189 | B194: عبدالستارعيدعبدالستارعيسي | M194: 1 | N194: 1 | O194: 1 | Q194: 1 | S194: 1 | T194: 1 | V194: 1 | W194: 1 | Y194: 1 | Z194: 1 | AA194: 1
A195: 190 | B195: عبدالسلام فتحي شلبي | I195: 2 | J195: 2 | K195: 2 | L195: 2
A196: 191 | B196: عبدالسلام فتحي محمد | N196: 1 | T196: 1
A197: 192 | B197: عبدالسلام مصطفي علي | V197: 1
A198: 193 | B198: عبدالعزيز حمدي عبدالعزيز محمد | AC198: 1
A199: 194 | B199: عبدالغفار محمد منير | C199: 1 | D199: 1 | E199: 1 | F199: 1 | H199: 1 | J199: 1 | L199: 1 | N199: 1 | Q199: 1 | X199: 1
A200: 195 | B200: عبدالغفور محمد عبالغفور دره | C200: 1 | D200: 1 | E200: 1 | H200: 1 | Z200: 1
A201: 196 | B201: عبدالغني جمال عاشور محمد | U201: 1 | V201: 1 | W201: 1 | Y201: 1 | Z201: 1 | AA201: 1 | AB201: 1 | AC201: 1
... 212 more rows
